{"text_format":"3","workbook":"xlsx","n_sheets":4,"sheets":["BID_INFO","INSTRUCTIONS","KEY","Specifications"],"not_rendered":{"images":1},"read":"whole","date_system":"1900"}

{"sheet":"BID_INFO","index":0,"n_rows":43,"n_cols":4,"rows_kept":43,"merged":[[30,0,32,3],[35,0,39,3],[42,0,45,3]]}
[]
[]
[]
[]
[]
[]
["Bid Title:","Food NonFood Bid 2020"]
["Bid Number:",""]
["Bid Opens:"]
[]
["Operator:","Robertson County School Dist"]
[null,"800 M.S. Couts Blvd."]
[null,"Springfield, TN 37172"]
[]
["Contact:","Patsi Gregory (Patsi.Gregory@rcstn.net)"]
[null,"Robertson County School Dist"]
[null,"800 M.S. Couts Blvd."]
[null,"Suite 1"]
[null,"Springfield, TN 37172"]
[null,"ph: (615) 384-2076"]
[]
["Bid Shipment Type:"]
["Bid Award Type:","Line Item"]
[]
["Bid Issued:",null,"Contract Starts:","7/1/2020"]
["Bid Opens:",null,"Contract Ends:","6/30/2021"]
[]
["Response Mailing Address"]
[]
["Operator Notes"]
[""]
[]
[]
[]
["General Proposal Requirements:"]
["Proposals shall be submitted through the Interflex BidAdvantage system.  Bidders should complete the Specifications tab of this Excel file for those items they wish to bid on and upload the file into the Interflex BidAdvantage system.  You may also be required to send a printed copy and any other required documents to the operator - please refer to the bid documents provided by the operator to determine if a hard copy or printed copy must be returned.  Please follow all instructions provided by the operator pertaining to this bid - failure to do so may disqualify your bid.  Please use the Instructions and Key tabs included in this file to guide you in completing your quotes."]
[]
[]
[]
[]
[]
["Help:"]
["If you have a bid related question, please contact the Operator contact(s) listed above.   If you have technical or web site related questions please contact Interflex at 800-293-2909 or custserv@interflex.net."]

{"sheet":"INSTRUCTIONS","index":1,"n_rows":22,"n_cols":6,"rows_kept":22,"merged":[[1,5,1,9],[2,5,2,9],[9,1,9,9],[11,1,11,9],[13,1,13,9],[15,1,15,9],[17,1,17,9],[19,1,19,9],[21,1,21,9]]}
[]
[{"$nulls":5},"VENDOR BIDDING INSTRUCTIONS"]
[{"$nulls":5},"VERSION 1.0"]
[]
[]
[]
[]
["GENERAL BIDDING INSTRUCTIONS"]
[]
["1. ","Please confirm that you have downloaded all bid documents from the opportunity that you have received.  All documents that require a signature must be mailed back with your completed bid response."]
[]
["2. ","Please use the \"Specifications\" tab on this excel document to enter your bids for this opportunity.  You will then upload this information into the Interflex BidAdvantage system to submit your bid response.  PLEASE NOTE:  Making modifications to the \"Specifications\" tab may cause your upload process to error - this includes adding or deleting columns, fields, modifying headers, etc.  Do NOT, under any circumstances, remove or edit the System ID in column A.  You may alter the width and height of rows to make the file easier to look at or print."]
[]
["3.","Bids are to be entered in the green tinted columns of the excel document (to the right of the specifications). "]
[]
["4.","If you would like to provide multiple bids for one specification, please copy and paste the entire row. To do this, right click on the row number so that the entire row is higlighted and choose copy.  Then highlight the next corresponding row number, right click and choose Insert Copied Cell.  You must create a new row for each bid you make on a single specification (i.e. 3 bids, 3 rows)."]
[]
["5.","Prices may be expressed to a maximum of five (5) decimal places only (e.g. $0.00000).  The system will automatically round all prices down to the nearest fifth decimal place when uploaded if you have entered more than five (5) decimal places."]
[]
["6.","The \"key\" tab will designate which fields are mandatory.  All mandatory fields should be filled out on items that are being bid. If you do not wish to bid on a line item, please leave that row completely blank.  Entering the word \"none\" or the value \"0\" will result in errors on the upload of your bids.  If any mandatory fields are left blank on the items you are quoting on, you will be required to fill that information in during the upload process."]
[]
["7.","Please include the following items when submitting your bid to the Operator (in addition to the upload of your quotes into the Interflex BidAdvantage system):\na.) All completed bid documents as instructed by the Operator.\nb.) A printed copy of the \"Specifications\" tab of this Excel file."]

{"sheet":"KEY","index":2,"n_rows":68,"n_cols":11,"rows_kept":68,"merged":[[4,0,4,2],[5,1,5,2],[61,1,61,2]]}
[]
[null,null,"EXCEL FIELDS KEY"]
[null,null,"Version 1.0"]
[]
["SPECIFICATION - COLUMN KEY"]
[null,"*denotes a required field"]
["Column","Title","Field Description"]
[]
["A","System ID","Unique Indentifier for the specification's location in the database.  DO NOT ALTER OR REMOVE!"]
[]
["B","Interflex #","Line item number assigned to the specification by Interflex "]
[]
["C","Operator #","Line item number assigned to the specification by the Operator."]
[]
["D","Product Category","Category with which the specification has been associated."]
[]
["E","Description","Specification defined by the Operator."]
[]
["F","Pack","Type of packaging specified by the Operator (i.e. if a case is packed as 96/4 oz)."]
[]
["G","Quantity","Forecasted quantity of Bid Units (i.e. 450 Cases)."]
[]
["H","Approved Products","Manufacturer(s) or Brand(s) that have been pre-approved to meet the specifcation of the operator.  Approved vendors' product code(s) will be listed in parentheses if provided by the Operator."]
[]
["I","Alternate Type","Indicator of the Operator's preferences regarding the Approved Products."]
[]
["Column","Title","Field Description"]
[]
["J","Product Manufacturer","Product Manufacturer or Brand that will be supplied by the bidding vendor."]
[]
["K","Manufacturer Code","SKU/code of item in Column J."]
[]
["L","Distributor Code","Distributors code of item in Column J."]
[]
["M","*Pack Number","Number of individual units in a case.  If a case is packed as 96/2 oz., indicate 96 here.  Either the pack number or pack size is required."]
[]
["N","*Pack Size","Size of each individual unit in a case (i.e. if case pack is 96/2 oz, indicate 2 here) Either the pack number or pack size is required."]
[]
["O","*Pack Unit","Unit of measure of each individual unit in a case.  Use the drop down menu to select your pack size unit (i.e. if packaging is 6/5lb per case, indicate pounds here). "]
[]
["P","Quantitiy","Total Quantity of bid units needed to equal operator forecasted quantity."]
[]
["Q","*Bid Unit","Unit of Measure on which the bid price is based. (i.e Cases, pounds, servings, etc.)"]
[]
["R","*Unit Price","Price per Bid Unit (i.e. case price)."]
[]
["S","Extended Price","Total forecasted price: this column will automatically calculate based on Column P (Quantity) and Column R (Unit Price)."]
[]
["T","Notes","Use for additional notes or comments regarding the bid."]
[]
["Column","Title","Field Description"]
[]
["U","*Price Per Serving",""]
[]
["V","*Servings Per Case",""]
[]
["W","Smart Snack Compliant (Y/N)","Please indicate whether the bid product complies with the Smart Snack Competitive Food guidelines (Y or N)"]
[]
["X","Meal Equivalencies","Please indicate the number of creditable Meat/Meat Alternates, Grains, Fruits, and Vegetables, if applicable."]
[]
[]
[null,"*denotes a required field"]
[]
["EXAMPLE:"]
["Product Manufacturer","Manufacturer Code","Distributor Code","Pack Number ","Pack Size ","Pack Unit","Quantity","Bid Unit","Unit Price","Extended Price","Notes"]
["Manufacturer A","12345-0761",null,200,null,"Count",500,"Cases",20,{"$f":"I66*G66","v":10000}]
["Manufacturer B","2564-032",12345,6,10,"Cans",250,"Cases",13.2,{"$f":"I67*G67","v":3300},"Special Order only"]
["Brand 1",45899,null,2,5,"Pounds",1000,"Pounds",3.25,3250]

{"sheet":"Specifications","index":3,"n_rows":411,"n_cols":24,"rows_kept":411}
["System ID","Interflex #","Operator #","Product Category","Description","Pack","Quantity","Approved Products","Alternate Type","Product Manufacturer","Manufacturer Code","Distributor Code","Pack Number","Pack Size","Pack Unit","Quantity","Bid Unit","Unit Price","Extended Price","Notes","Price Per Serving","Servings Per Case","Smart Snack Compliant (Y/N)","Meal Equivalencies"]
["Section A"]
["37734124ED67D8D1C665538A646DCBDC",1,"","Bacon","Bacon Fc Round Insta Finish 3/1.32 Lb","192 / 3.25 Inches","450 Cases","Armour-Eckrich Meats LLC. (ConAgra Brands, Smithfield Foods) - 44109","Approved Equivalent",{"$nulls":9},{"$f":"P3 * R3","v":0}]
["E9D2DEBC5F2C8C8231CE3E1632337E3C",2,"","Bakery Products: Biscuits","Biscuit Stick Dough 1=1Ge","250 / 1.25 Ounces","324 Cases","Rich's (Rich Products Corporation) - 16317","Approved Equivalent",{"$nulls":9},0]
["4C1C64EE2D53EB188D3D620F7D55D130",3,"","Bakery Products: Bread","06063 ZTF Biscuit Dough Round Handi-Split","240 / 2.2 Ounces","905 Cases","Rich's (Rich Products Corporation) - 49800060630","Approved Equivalent",{"$nulls":9},0]
["13D336FCF35BEEF9D6861D5652BF3E1F",4,"","Bakery Products: Bread","Bread Loaf White Gluten Free  Sl","6 / 24.0 Ounces","5 Cases","Udi's Gluten Free (ConAgra Brands) - 673011","Approved Equivalent",{"$nulls":9},0]
["1712E7CD844244CAB2B95CDC1E3DE758",5,"","Bakery Products: Bread","Bread Sub White Wheat 6\" 2 Oz 2 Brd","6 / 12.0 Count","900 Cases","Sky Blue Bakery - Wgsub612","Approved Equivalent",{"$nulls":9},0]
["8FBA300615E154C5C2DAF2CD689B69C7",6,"","Bakery Products: Bread","Bread Wheat 100% 18 Sl Wg 1Sl=1 Ge","10 / 21.5 Ounces","1,105 Cases","Hart - 5603","Approved Equivalent",{"$nulls":9},0]
["81D5EABB376C14B3933DEB3E5BF951B4",7,"","Bakery Products: Bread","Whole Grain Garlic Knot","144 / 2.0 Ounces","870 Cases","Tasty Brands, LLC. - 10852777004944","Approved Equivalent",{"$nulls":9},0]
["2459AC76E75CAD3603952773DFD763DF",8,"","Bakery Products: Bread Sticks","Bread Stick Garlic Wg","168 / 36.0 Grams","745 Cases","New York (T. Marzetti Company) - 15021","Approved Equivalent",{"$nulls":9},0]
["F62ED69266D7BCB3E6FC022CBB0E1829",9,"","Bakery Products: Bread Sticks","Breadstick Apple Cinn Wg 2 Wg 1/8 Fruit","72 / 3.0 Ounces","320 Cases","EZ Jammers (Albie's Foods Inc.) - 711","Approved Equivalent",{"$nulls":9},0]
["93A185568EF08BF80D369F644B6CE2AB",10,"","Bakery Products: Bread Sticks","Breadstick Chs Fill 6\" Wg=1Mt&1Ge W/Bg","144 / 2.21 Ounces","1,760 Cases","Gilardi Foods - 20117","Approved Equivalent",{"$nulls":9},0]
["3D372105B297422E6DBACD18292AF722",11,"","Bakery Products: Buns & Rolls","Bun Hamb Wg White 4\"  =2Gr","128 / 2.0 Ounces","1,210 Cases","Super Bakery, Inc. - 7671","Approved Equivalent",{"$nulls":9},0]
["4EF9151DBBCD16C367D0D7F0FAD79B09",12,"","Bakery Products: Buns & Rolls","Bun Hamburger Gluten Free Iw","24 / 3.2 Ounces","7 Cases","Udi's Gluten Free (ConAgra Brands) - 6989978064","Approved Equivalent",{"$nulls":9},0]
["B6503B2BC3997FC63C4A5D54CFE9B224",13,"","Bakery Products: Buns & Rolls","Bun Hot Dog Gluten Free Iw","24 / 2.4 Ounces","3 Cases","Udi's Gluten Free (ConAgra Brands) - 6989978062","Approved Equivalent",{"$nulls":9},0]
["8688946072DEC86EBE8C90EBBEE752F7",14,"","Bakery Products: Buns & Rolls","Bun Hot Dog Wg 6\" 2G","144 / 2.0 Ounces","270 Cases","Super Bakery, Inc. - 7675","Approved Equivalent",{"$nulls":9},0]
["F08308527B8D161CA30610D608D4B611",15,"","Bakery Products: Buns & Rolls","Bun Slider Ultra Wg Sl 2.5\" =1Gr","288 / 1.3 Ounces","250 Cases","Super Bakery, Inc. - 7669","Approved Equivalent",{"$nulls":9},0]
["0057F62447D236F1A3D177F0914C09E1",16,"","Bakery Products: Buns & Rolls","Roll Whole Wheat Ma's =2Bd Wg","72 / 2.0 Ounces","2,470 Cases","Healthy Life Bread (Lewis Bakery) - 31848","Approved Equivalent",{"$nulls":9},0]
["64FD4E2E9900ABE7EEAA4076E6EFA068",17,"","Bakery Products: Donuts","Donut Wg Mini Choc Iw 6 Pack=2 Ge","72 / 3.2 Ounces","395 Cases","Bake Crafters Food Company - 1929","Approved Equivalent",{"$nulls":9},0]
["FCD980BB7EB7B7AB978199172DAB77EA",18,"","Bakery Products: Donuts","Donut Wg Mini Pwdrd Sugar 6 Pk=2 Ge","72 / 3.2 Ounces","360 Cases","Bake Crafters Food Company - 1931","Approved Equivalent",{"$nulls":9},0]
["A7B98167271B106E40FD85396A3A8E4C",19,"","Bakery Products: French Toast","Stick French Toast Cinn Glz Wg3=1Mt&1G","255 / 0.97 Ounces","850 Cases","Michael Foods, Inc. - 75012","Approved Equivalent",{"$nulls":9},0]
["6F781A7053B6527D1AF0A21319125428",20,"","Bakery Products: Icing","Icing Vanilla Bettercreme Rtu","1 / 9.0 Pounds","15 Cases","Rich's (Rich Products Corporation) - 06429*","Approved Equivalent",{"$nulls":9},0]
["63F07AA8E2AD5283CE85963EED9129E3",21,"","Bakery Products: Marshmallows","Marshmallow Miniature","12 / 1.0 Pounds","25 Cases","Hospitality (Gilster-Mary Lee Corporation) - 16100","Approved Equivalent",{"$nulls":9},0]
["D24E7B7D7754B9853D31AA60BEE74624",22,"","Bakery Products: Muffins","Muffin Blueberry Wg=1Ge Iw","48 / 2.0 Ounces","1,500 Cases","Chef Pierre (Sara Lee Frozen Bakery) - 8860","Approved Equivalent",{"$nulls":9},0]
["F711C88BCC7A67B1EDE77F62E04D79B2",23,"","Bakery Products: Muffins","Muffin Double Chocolate Iw Wg=1Ge","48 / 2.0 Ounces","2,000 Cases","Chef Pierre (Sara Lee Frozen Bakery) - 8862","Approved Equivalent",{"$nulls":9},0]
["21560DF83C311E196B252AE5B3BF028C",24,"","Bakery Products: Pancakes","Pancake & T/Saus M/Flv Iw Wg Cn=1Mt&1Ge","68 / 2.85 Ounces","1,062 Cases","Foster Farms - 95127","Approved Equivalent",{"$nulls":9},0]
["C456177BBF92223BCB6FE7F50CE949E0",25,"","Bakery Products: Pastries","Pastry Mini Cinni Wg =2 Ge Iw","72 / 2.29 Ounces","320 Cases","The Pillsbury Company (General Mills, Inc.) - 133686","Approved Equivalent",{"$nulls":9},0]
["F2D5704FD1ADE4F731B3E196366CEE01",26,"","Bakery Products: Syrup","Syrup Caramel Sugar Free","4 / 1.0 Liters","165 Cases","Monin - M-Sf0009f","Approved Equivalent",{"$nulls":9},0]
["E270144377A99DC0EED1F0AA0BFC669D",27,"","Bakery Products: Toaster Pastries","Poptart Blueberry Wg 1 Ct","120 / 1.76 Ounces","450 Cases","Kellogg Company - 3800017196","Approved Equivalent",{"$nulls":9},0]
["66312A97FBEC885492C12A84BF8E93CC",28,"","Bakery Products: Toaster Pastries","Poptart Strawberry Wg 1Ct","120 / 1.76 Ounces","450 Cases","Kellogg Company - 3800055130","Approved Equivalent",{"$nulls":9},0]
["4D31BE24895515D0D1B82350C4482EBE",29,"","Beverages & Mixes: Coffee","Coffee Instant Classic Roast","12 / 3.0 Ounces","40 Cases","Folgers (The J. M. Smucker Company) - 2550020083","Approved Equivalent",{"$nulls":9},0]
["EF11F55D2BD5C30B05F1978D13EE5A7D",30,"","Beverages & Mixes: Juices & Drinks","Juice Apple Ctn 100% Bev","70 / 6.0 Ounces","20 Cases","Ardmore Farms (Country Pure Foods) - 42212","Approved Equivalent",{"$nulls":9},0]
["C4852CB7B861B0CADA7D7C4D653A5F45",31,"","Beverages & Mixes: Juices & Drinks","Juice Apple Ctn Bev","70 / 4.0 Ounces","3,740 Cases","Ardmore Farms (Country Pure Foods) - 42298","Approved Equivalent",{"$nulls":9},0]
["4C1CCF8F7CEA10A6C0F1B8CA80636A2B",32,"","Beverages & Mixes: Juices & Drinks","Juice Base Frz Wild Berry 100% Juice","6 / 64.0 Ounces","100 Cases","Shiver Shock (K & R Beverages) - 444","Approved Equivalent",{"$nulls":9},0]
["288971C7D4090DA99B889E6522569622",33,"","Beverages & Mixes: Juices & Drinks","Juice Dragon Punch Ctn Veg/Frt Bld Bev","70 / 4.0 Ounces","35 Cases","Ardmore Farms (Country Pure Foods) - 45710","Approved Equivalent",{"$nulls":9},0]
["A5E8E5415AC658A05320960F02ACDF28",34,"","Beverages & Mixes: Juices & Drinks","Juice Fruit Punch 100% Ctn Bev","70 / 6.0 Ounces","10 Cases","Ardmore Farms (Country Pure Foods) - 42215","Approved Equivalent",{"$nulls":9},0]
["08D88A2CEBBCB6833FFA8F4CCBE43ADE",35,"","Beverages & Mixes: Juices & Drinks","Juice Fruit Punch 100% Ctn Bev","70 / 4.0 Ounces","2,240 Cases","Ardmore Farms (Country Pure Foods) - 42304","Approved Equivalent",{"$nulls":9},0]
["073268EC4A8E463EC79CCD02B0CD63D2",36,"","Beverages & Mixes: Juices & Drinks","Juice Orange 100% Carton Bev","70 / 4.0 Ounces","3,400 Cases","Ardmore Farms (Country Pure Foods) - 42297","Approved Equivalent",{"$nulls":9},0]
["7EC1C465F88844E6FC843208606820C7",37,"","Beverages & Mixes: Juices & Drinks","Juice Orange Ctn 100% Bev","70 / 6.0 Ounces","13 Cases","Ardmore Farms (Country Pure Foods) - 42210","Approved Equivalent",{"$nulls":9},0]
["C1B0B36E5E0FC4DAE56C746324D494A2",38,"","Beverages & Mixes: Juices & Drinks","Juice Trop/Twist Apple&Eve Bev 1/2 Veg","40 / 125.0 Milliliters","2,040 Cases","Apple & Eve (Apple & Eve L.L.C.) - 24023Cbf","Approved Equivalent",{"$nulls":9},0]
["9C5D40754D4C617A251A170EB78F8C13",39,"","Beverages & Mixes: Slushies","Slushie Be Mine Red","84 / 4.4 Ounces","95 Cases","Sidekicks (Country Pure Foods) - 2013","Approved Equivalent",{"$nulls":9},0]
["07FD112F33D35E9EBCAFA6226A342507",40,"","Beverages & Mixes: Slushies","Slushie Bloom =.5Frt","84 / 4.4 Ounces","95 Cases","Sidekicks (Country Pure Foods) - 2019","Approved Equivalent",{"$nulls":9},0]
["42C2976C7FEF9DE4C915A9E18B98DFBE",41,"","Beverages & Mixes: Slushies","Slushie Blue Rasp Lemon 100% Bev .5 Frt","84 / 4.4 Ounces","1,700 Cases","Sidekicks (Country Pure Foods) - 2009","Approved Equivalent",{"$nulls":9},0]
["751F26ED39A5DCA8BC7FF880746354A1",42,"","Beverages & Mixes: Slushies","Slushie Eek! Orange And Cream =.5Fr","84 / 4.4 Ounces","95 Cases","Sidekicks (Country Pure Foods) - 2022","Approved Equivalent",{"$nulls":9},0]
["5BD029B2727BC2F2EC6E8FE0EB771F4F",43,"","Beverages & Mixes: Slushies","Slushie Jolly Red/Green","84 / 4.4 Ounces","95 Cases","Sidekicks (Country Pure Foods) - 2008","Approved Equivalent",{"$nulls":9},0]
["DBC06DD81C7EFDD5BC07DAEE85C5FCB7",44,"","Beverages & Mixes: Water","Water Natural Spring Bev","24 / 20.0 Ounces","190 Cases","Nature's Crystal - 560318","Approved Equivalent",{"$nulls":9},0]
["B1A8DB6CAC60EA5E379E5826ACD75BC0",45,"","Beverages & Mixes: Water","Water Spring/Pure Bev Squat","24 / 10.0 Ounces","4,558 Cases","Nature's Crystal - 580732","Approved Equivalent",{"$nulls":9},0]
["28716D65535FF87FA00F38FC94C3B740",46,"","Cereals: Hot Cereals","Oatmeal Quick Wg","12 / 42.0 Ounces","280 Cases","Restaurant Pride (F.A.B.) - 36820","Approved Equivalent",{"$nulls":9},0]
["26D2B2B34BAC0E3EE65CCB2DE93ABFA1",47,"","Cereals: Ready to Eat Cereals","Cereal Bulk Granola Orig Wg 2.25 Brd","4 / 50.0 Ounces","438 Cases","Fieldstone Bakery (McKee Foods Corporation) - 9799","Approved Equivalent",{"$nulls":9},0]
["E74134B5F39EFFC01FD7D2F47A5304FA",48,"","Cereals: Ready to Eat Cereals","Cereal Cheerios Wg =1Ge","96 / 1.0 Ounces","143 Cases","General Mills, Inc. - 32262","Approved Equivalent",{"$nulls":9},0]
["A8F37A7257F33471EB2F27C22F634C68",49,"","Cereals: Ready to Eat Cereals","Cereal Cinnamon Toast R/S Wg =1Ge","96 / 1.0 Ounces","475 Cases","General Mills, Inc. - 29444","Approved Equivalent",{"$nulls":9},0]
["855DD666A05E363EC5E1C7BE13CEA183",50,"","Cereals: Ready to Eat Cereals","Cereal Cocoa Puffs R/S Wg =1 Ge","96 / 1.06 Ounces","472 Cases","General Mills, Inc. - 31888","Approved Equivalent",{"$nulls":9},0]
["492E293F2906B2420AF69B6EF41B307C",51,"","Cereals: Ready to Eat Cereals","Cereal Fruit Loops Wg Rs =1Brd","96 / 1.0 Ounces","450 Cases","Kellogg Company - 3800078788","Approved Equivalent",{"$nulls":9},0]
["06954D8A63C2A3847F781205E4AB13C0",52,"","Cereals: Ready to Eat Cereals","Cereal Honeynut Cheerios Wg =1Ge","96 / 1.0 Ounces","175 Cases","General Mills, Inc. - 11918","Approved Equivalent",{"$nulls":9},0]
["B0728B7C48F099841A4A0AED59A9125E",53,"","Cereals: Ready to Eat Cereals","Cereal Lucky Charms Wg =1Ge Gluten Free","96 / 1.0 Ounces","626 Cases","General Mills, Inc. - 31917","Approved Equivalent",{"$nulls":9},0]
["B991085776B0474B9329151FE9FF5BE6",54,"","Cereals: Ready to Eat Cereals","Cinnamon Toast Cereal Cup 2GR","60 / 2.0 Ounces","75 Cases","General Mills, Inc. - 14886000","Approved Equivalent",{"$nulls":9},0]
["5EA872FDB14F1589627100A026943B45",55,"","Cereals: Ready to Eat Cereals","Cocoa Puffs Cereal Cup 2 GR","60 / 2.0 Ounces","75 Cases","General Mills, Inc. - 14885000","Approved Equivalent",{"$nulls":9},0]
["FA2503F9217C516749E933BDA0087E0E",56,"","Cereals: Ready to Eat Cereals","Lucky Charms Cereal Cup 2 GR","60 / 2.0 Ounces","75 Cases","General Mills, Inc. - 14884700","Approved Equivalent",{"$nulls":9},0]
["B0ABA0DA5DB7AE7EE0BD3A777276B3EE",57,"","Coatings, Oils, Shortenings: Food Release","Pan Release Aerosol 177021  (44626)","6 / 16.5 Ounces","3 Cases","Restaurant Pride (F.A.B.) - 17440","Approved Equivalent",{"$nulls":9},0]
["0275BDDD9C7F9D249B1E82BD62C46C8E",58,"","Coatings, Oils, Shortenings: Food Release","Pan Release Buttermist","6 / 17.0 Ounces","170 Cases","Butter Buds - 56217","Approved Equivalent",{"$nulls":9},0]
["87CD0519AB405EF1F1757EBC6DF5AA11",59,"","Condiments: Ketchup","Ketchup Individual Heinz      984800","1000 / 9.0 Grams","620 Cases","Heinz (The Kraft Heinz Company) - 78000108","Approved Equivalent",{"$nulls":9},0]
["5947847E3B453CDD1B0755C7219D64E4",60,"","Condiments: Mayonnaise","Mayo Light Rs/Rf","200 / 12.0 Grams","65 Cases","Diamond Crystal Brands - 78011","Approved Equivalent",{"$nulls":9},0]
["E00480BDB2765F8AE8C9F6B0FA2E9F20",61,"","Condiments: Mayonnaise","Mayonnaise- Galloon Containers","4 / 1.0 Gallons","10 Cases",null,"Approved Equivalent",{"$nulls":9},0]
["5C3A38D290C1BE790B32CF30AB6A6067",62,"","Condiments: Mustard","Mustard Packets","500 / 5.5 Grams","91 Cases","Restaurant Pride (F.A.B.) - 59675","Approved Equivalent",{"$nulls":9},0]
["79E01428E6E5F843CD6809E930025F6F",63,"","Condiments: Salsa","Salsa Dipping Cup 1/2 Veg L/S","84 / 3.0 Ounces","2,600 Cases","Red Gold, Inc. - 7294011139","Approved Equivalent",{"$nulls":9},0]
["AABB2F9EEDF10FCED2F0282A77323263",64,"","Condiments: Salsa","Salsa Nutritionally Enhanced L/S","6 / 10.0 Cans","100 Cases","Red Gold, Inc. - 7294011005","Approved Equivalent",{"$nulls":9},0]
["410A1D7F7103B2B1BE15B15D7010AFCB",65,"","Condiments: Syrup","Syrup Pancake Reduced Calorie","100 / 1.0 Ounces","163 Cases","Portion Pac, Inc. (PPI) (The Kraft Heinz Company) - 92945","Approved Equivalent",{"$nulls":9},{"$f":"P67 * R67","v":0}]
["1B0EA8F8F66C2BD7965949B993E15A55",66,"","Dairy & Non-Dairy: Butter","Granual Butter Flavored Ff Butter Buds","24 / 4.0 Ounces","60 Cases","Butter Buds - 49835","Approved Equivalent",{"$nulls":9},0]
["11FBF2792EC824680FF28CB81CC4D14A",67,"","Dairy & Non-Dairy: Butter","Sun Butter and Sunflower Seed Meal Kit","48 / 8.73 Ounces","192 Cases","Global Food Solutions - PUB018","Approved Equivalent",{"$nulls":9},0]
["C1AA63E4DE47D226CC1FD2FD2602DCFC",68,"","Dairy & Non-Dairy: Butter","Sun Butter Meal Kit","48 / 193.0 Grams","192 Cases","Global Food Solutions - PUB018","Approved Equivalent",{"$nulls":9},0]
["6FD802AB13A1976491E7D0BF0D89CB29",69,"","Dairy & Non-Dairy: Cheese","Cheese Amer Yel 160 Rf/Rs","6 / 5.0 Pounds","200 Cases","Schreiber Foods, Inc. - 10135-1","Approved Equivalent",{"$nulls":9},0]
["9A51430CCB2055E001F42B40B24CEEF6",70,"","Dairy & Non-Dairy: Cheese","Cheese Cheddar Feather Shrd--School Only","4 / 5.0 Pounds","195 Cases","Bongards Creameries - 85551/191","Approved Equivalent",{"$nulls":9},0]
["D0F99079C7C06604500A130B10B9ED6F",71,"","Dairy & Non-Dairy: Cheese","Cheese Mozz Shrd Lmps 2% Fthr-Schools","4 / 5.0 Pounds","140 Cases","Bongards Creameries - 71","Approved Equivalent",{"$nulls":9},0]
["EBCFF9FD148D72FD265212C7F9EE6A25",72,"","Dairy & Non-Dairy: Cheese","Cheese Mozz String L/F Iw =1Mt","168 / 1.0 Ounces","53 Cases","IWC Food Service - 9318","Approved Equivalent",{"$nulls":9},0]
["306883FBE063F49BD440FF73F2632B0C",73,"","Dairy & Non-Dairy: Cheese","Cheese Parmesan Grated Domestic","12 / 1.0 Pounds","1,073 Cases","Orefresco (F.A.B.) - 55845","Approved Equivalent",{"$nulls":9},0]
["4A3963873F18F78ADF0259CAB6D103DE",74,"","Dairy & Non-Dairy: Cheese","Italian Breaded Mozzarella cheese Sticks CN WG/LS","4 / 5.45 Pounds","400 Cases","High Liner (High Liner Foods (USA), Inc.) - G1042df","Approved Equivalent",{"$nulls":9},0]
["4D9444C720CC8422511771E3AE4B0475",75,"","Dairy & Non-Dairy: Creamer","Creamer French Vanilla Coffee","180 / 0.38 Ounces","1 Cases","Carnation (Nestle USA) - 35070","Approved Equivalent",{"$nulls":9},0]
["82A7AAA48CA74616F6E0F7D9C0377FDB",76,"","Dairy & Non-Dairy: Creamer","Creamer Hazelnut Coffee","180 / 0.38 Ounces","1 Cases","Carnation (Nestle USA) - 35080","Approved Equivalent",{"$nulls":9},0]
["A9EE4DF0D88F09AA3B7FFF16E17C398E",77,"","Dairy & Non-Dairy: Creamer","Creamer Shelf Stable Coffee","360 / 0.38 Ounces","1 Cases","Coffee-Mate (Nestle USA) - 35010","Approved Equivalent",{"$nulls":9},0]
["E8FBD6A6B98917436A0C3AE3BACD24B7",78,"","Dairy & Non-Dairy: Margarine","Margarine Cup 5 Gram Tff","900 / 5.0 Grams","75 Cases","Gold-n-Sweet (Ventura Foods, LLC) - 22160","Approved Equivalent",{"$nulls":9},0]
["1E21B63C2C92ECC927C981A4CF85CA64",79,"","Dairy & Non-Dairy: Milk","Milk 1% Ss","27 / 8.0 Ounces","90 Cases","Hershey Foods Corporation - 10195","Approved Equivalent",{"$nulls":9},0]
["49CFD43DB47DC78E306570462B93AAA9",80,"","Dairy & Non-Dairy: Milk","Milk Choc Ff Ss","27 / 8.0 Ounces","140 Cases","Hershey Foods Corporation - 10202","Approved Equivalent",{"$nulls":9},0]
["FA9CF94BB00D0D6A3F3A6F541CAE1C35",81,"","Dairy & Non-Dairy: Milk","Milk Strawberry Ff Ss","27 / 8.0 Ounces","20 Cases","TruMoo (Dean Foods Company) - 8597","Approved Equivalent",{"$nulls":9},0]
["23311E078153584873C88FA7B8028852",82,"","Dairy & Non-Dairy: Sour Cream","Cream Sour Ff","100 / 1.0 Ounces","415 Cases","Land O'Lakes, Inc. (LOL) - 64407","Approved Equivalent",{"$nulls":9},0]
["6F99ED9AF2F89C94C6A395F43B418E47",83,"","Dairy & Non-Dairy: Yogurt","Yogurt Blueberry Parfait Pro L/F G/F","6 / 64.0 Ounces","240 Cases","Yoplait (General Mills, Inc.) - 7047016067","Approved Equivalent",{"$nulls":9},0]
["847166D10CAA785CE16B96230B6CB775",84,"","Dairy & Non-Dairy: Yogurt","Yogurt Raspberry Rainbow Gf Tff 1Mt","48 / 4.0 Ounces","12 Cases","Trix (General Mills, Inc.) - 17725","Approved Equivalent",{"$nulls":9},0]
["A9DCF45593444CBEA16F29B40C96F125",85,"","Dairy & Non-Dairy: Yogurt","Yogurt Strawberry Parfait Pro L/F","6 / 64.0 Ounces","240 Cases","Yoplait (General Mills, Inc.) - 16631","Approved Equivalent",{"$nulls":9},0]
["BFD3BF2D1A3B88CE98711BD14695B47A",86,"","Dairy & Non-Dairy: Yogurt","Yogurt Vanilla Parfait Pro L/F Gf Tff","6 / 64.0 Ounces","2,107 Cases","Yoplait (General Mills, Inc.) - 16632","Approved Equivalent",{"$nulls":9},0]
["F7DD63EEA85CB5CA498AC305032BD0CD",87,"","Desserts: Cakes","Mix Cake Yellow Tff","6 / 5.0 Pounds","15 Cases","Gilster-Mary Lee Corporation - 65007","Approved Equivalent",{"$nulls":9},0]
["37B4542ADD45E4A83961D25DCCF72239",88,"","Desserts: Cookies","Cookie Englsh/Spansh Wg/Tff1ge 8803","120 / 1.0 Ounces","60 Cases","Dick & Jane Baking Company - 651944","Approved Equivalent",{"$nulls":9},0]
["69F331F353E8E186B49960F39B14D82A",89,"","Desserts: Cookies","Dough Cookie Carnival Rf Wg=.66 Gr","245 / 1.0 Ounces","50 Cases","Bonzers (Michael's Bakery Products) - 71035","Approved Equivalent",{"$nulls":9},0]
["FD96A1B541F84F1BC644CE0E148F3FB3",90,"","Desserts: Cookies","Dough Cookie Choc Chip Rf Wg=.66 Gr","245 / 1.0 Ounces","1,211 Cases","Bonzers (Michael's Bakery Products) - 71001","Approved Equivalent",{"$nulls":9},0]
["DA77406201DEE2071F07A6141827106D",91,"","Desserts: Cookies","Fortune Cookies Wg Iw","1 / 400.0 Count","210 Cases","Asian Food Solutions - 79203","Approved Equivalent",{"$nulls":9},0]
["7613C8741727CC29692B162EDD85E65D",92,"","Disposables and Supplies: Aprons","Apron Bib Wht 34X34 Cotton Blnd Pocket","12 Each","20 Cases",null,"Approved Equivalent",{"$nulls":9},0]
["8B6B40B078E4FCBA363CD9E96B219EBA",93,"","Disposables and Supplies: Aprons","Apron Embossed 28X46 1 Mil","5 / 100.0 Count","13 Cases","FoodHandler - 250-Fh20","Approved Equivalent",{"$nulls":9},0]
["03B0457FEAF56822098264C0538B8FAB",94,"","Disposables and Supplies: Bags","Bag Fliptop Sandwich 6.75X6.75X2\" Lip","5 / 2000.0 Count","30 Cases","FoodHandler - Sw219936","Approved Equivalent",{"$nulls":9},0]
["E8B003FB2139E7D2AEF6A188891BAC3A",95,"","Disposables and Supplies: Bags","Bag Paper White 6# 81223/51046","1 / 500.0 Count","40 Cases","Duro Bag Mfg. Company - 13201595","Approved Equivalent",{"$nulls":9},0]
["A0E3A5102C9512D1FA5FF0BFD0D2709B",96,"","Disposables and Supplies: Bags","Bag Poly Bun Pan 21X6x35 Clear 13Mic","1 / 250.0 Count","60 Cases","Fortune Plastics, Inc. - Bpl35","Approved Equivalent",{"$nulls":9},0]
["8340D9F54A16E86C6719B582CE55CD06",97,"","Disposables and Supplies: Bags","Bag Sandwich Zipseal 6.5X6","1 / 500.0 Count","18 Cases","FoodHandler - 20-Fh40","Approved Equivalent",{"$nulls":9},0]
["C83AA8364ADDFFA023470DB0DBE63475",98,"","Disposables and Supplies: Bags","Bag Storage Gallon Zipseal 10.5X11 Lld","1 / 250.0 Count","41 Cases","FoodHandler - 20Fh60","Approved Equivalent",{"$nulls":9},0]
["A8EBF482F8E73F19F7A1B390047D8CD2",99,"","Disposables and Supplies: Bags","Liner 33Gal 33X40 Extra Hvy Blk .70Mil","1 / 150.0 Count","21 Cases","Restaurant Pride (F.A.B.) - 4820081194","Approved Equivalent",{"$nulls":9},0]
["58401478D3682AC0F79C4AA1B3CF7AA2",100,"","Disposables and Supplies: Bags","Liner 60Gal 38X58 1.15Mil Wht Slw3858spw","1 / 100.0 Count","190 Cases","Restaurant Pride (F.A.B.) - 4820081238","Approved Equivalent",{"$nulls":9},0]
["D032A982BEB234CD0FDF07D42EC75D4B",101,"","Disposables and Supplies: Cleaning Products","Aid Rinse Dishmachine All Temp Blue","1 / 5.0 Gallons","20 Cases","Intercon Paper - 863","Approved Equivalent",{"$nulls":9},0]
["B49E5CEDF86532B47AC21246DA495125",102,"","Disposables and Supplies: Cleaning Products","Aid Rinse For Difficult Water","4 / 1.0 Gallons","10 Cases","Intercon Paper - 864","Approved Equivalent",{"$nulls":9},0]
["1985E4B1686EB39975A409727B034169",103,"","Disposables and Supplies: Cleaning Products","Bleach Liquid 6% Chlorine","6 / 1.0 Gallons","27 Cases","Restaurant Pride (F.A.B.) - Kikbleach6","Approved Equivalent",{"$nulls":9},0]
["553026E70A18D79EEDDEE09425478001",104,"","Disposables and Supplies: Cleaning Products","Cleaner Drain Enzyme Activate Plus","1 / 5.0 Gallons","25 Cases","Intercon Paper - 264","Approved Equivalent",{"$nulls":9},0]
["DDB2FD15F132F10A5657C2E9219CEF40",105,"","Disposables and Supplies: Cleaning Products","Cleaner Floor Surefoot Ez Enzyme","2 / 1.0 Gallons","33 Cases","Intercon Paper - 845","Approved Equivalent",{"$nulls":9},0]
["1EBDBBC07FCD9A717D140A0E93ECDBAF",106,"","Disposables and Supplies: Cleaning Products","Cleaner Fruit & Vegetable Preserver","4 / 3.3 Pounds","65 Cases","Natureseal - M34384","Approved Equivalent",{"$nulls":9},0]
["0CA307B8ECE0930963591E54DA0C28DE",107,"","Disposables and Supplies: Cleaning Products","Cleaner/Degreaser H/D Rtu Spray","6 / 32.0 Ounces","8 Cases","Land O' Lakes (Land O'Lakes, Inc. (LOL)) - Chsd","Approved Equivalent",{"$nulls":9},0]
["CEEEAF3F157A1B13A602AF29A67E6800",108,"","Disposables and Supplies: Cleaning Products","Cleaner/Degreaser H/D W/Butyl Yellow","4 / 1.0 Gallons","10 Cases","Intercon Paper - 694F","Approved Equivalent",{"$nulls":9},0]
["C5626434B8E5A6B103EC415E2940E5AA",109,"","Disposables and Supplies: Cleaning Products","Detergent Dish Dawn Blue Orig 45112","8 / 38.0 Ounces","110 Cases","Procter & Gamble (P&G) - 435714","Approved Equivalent",{"$nulls":9},0]
["6D21FD7788F8D01D38D3E91410222A0E",110,"","Disposables and Supplies: Cleaning Products","Detergent Dishmachine Hi-Temp Chlorinate","1 / 5.0 Gallons","52 Cases","Intercon Paper - 706","Approved Equivalent",{"$nulls":9},0]
["B79276A815F422475A7B864C3F5ECEC1",111,"","Disposables and Supplies: Cleaning Products","Detergent Laundry Lo Alkaline Triad","1 / 5.0 Gallons","20 Cases","Intercon Paper - 881","Approved Equivalent",{"$nulls":9},0]
["8AF2C48FCE18788BEF263DA06B32E760",112,"","Disposables and Supplies: Cleaning Products","Sanitizer Food Contact No Rinse Quat","4 / 1.0 Gallons","50 Cases","Intercon Paper - 234Grade A","Approved Equivalent",{"$nulls":9},0]
["12BB46FAFABE71095AD425F77F2A5273",113,"","Disposables and Supplies: Cleaning Products","Softener Water Salt Pellets","1 / 50.0 Pounds","7 Cases","Morton Salt - 2501","Approved Equivalent",{"$nulls":9},0]
["ACC7825EB4D3D711043EB0AB68FD434B",114,"","Disposables and Supplies: Cleaning Products","Solvent Delimer","4 / 1.0 Gallons","30 Cases","Intercon Paper - 410","Approved Equivalent",{"$nulls":9},0]
["072DF597E7BA0251CDA2CF4FC7C27BEA",115,"","Disposables and Supplies: Cleaning Products","Strip Chlorine Water Test Tube Dishmachi","1 / 100.0 Count","5 Cases","Precision Poly Inc - 145144V100","Approved Equivalent",{"$nulls":9},0]
["5909AAD8710B3C411906F1A6B9CED10F",116,"","Disposables and Supplies: Cleaning Products","Strip Quaternary Water Test Tube \"Sink\"","1 / 100.0 Count","21 Cases","Precision Poly Inc - 106-12V100","Approved Equivalent",{"$nulls":9},0]
["84D8E068D24AA59D02B12AE567ADCC0E",117,"","Disposables and Supplies: Cleaning Products","Wipe Sanitizing Probe/Thermometer Iw","10 / 200.0 Each","15 Cases","Cooper-Atkins Corporation - 438377","Approved Equivalent",{"$nulls":9},0]
["88F4D26CC61C0FBA947064572D53D154",118,"","Disposables and Supplies: Containers","Box Carryout Lg Din 9X5x4 Hearthstone","1 / 250.0 Count","1 Cases","Southern Champion Tray, LP (SCT) - 27576","Approved Equivalent",{"$nulls":9},0]
["AA5857067A9858EC25A9615BEBB124A0",119,"","Disposables and Supplies: Containers","Clamshell 5\" Small Eco-Grab'ngo Clear","1 / 500.0 Count","25 Cases","Atrium (WNA) - 29367","Approved Equivalent",{"$nulls":9},0]
["CAB69CA9FCAFE1B9128D3DC401AF5DDA",120,"","Disposables and Supplies: Cups","Cup Clear Plastic 16Oz (5564Lid)Pet","20 / 50.0 Count","50 Cases","Dart Container Corporation - Tp16d","Approved Equivalent",{"$nulls":9},0]
["F76F1E90D08F15D21E1674DE851513F0",121,"","Disposables and Supplies: Cups","Cup Foam 12Oz Squat Food Cont","20 / 25.0 Count","80 Cases","Dart Container Corporation - 12Sj20","Approved Equivalent",{"$nulls":9},0]
["21808D0FF213F882C9BBFBE08A8512ED",122,"","Disposables and Supplies: Cups","Cup Foam 12Oz White 12J12","40 / 25.0 Count","35 Cases","Dart Container Corporation - 12J12","Approved Equivalent",{"$nulls":9},0]
["F06C14839DE29ADCBD2AB48F107077CB",123,"","Disposables and Supplies: Cups","Cup Foam 8Oz Xtra Squat Food Container","20 / 50.0 Count","80 Cases","Dart Container Corporation - 8Sj20","Approved Equivalent",{"$nulls":9},0]
["6C6DBF98F5F5998BB4FE937A9E357B2B",124,"","Disposables and Supplies: Cups","Cup Plastic Clear 10Oz Tp10d","20 / 50.0 Count","35 Cases","Dart Container Corporation - Tp10d","Approved Equivalent",{"$nulls":9},0]
["12A6741516DD9F2195B3D32D7ACA312B",125,"","Disposables and Supplies: Cups","Cup Portion Plastic 2Oz","20 / 125.0 Count","85 Cases","Dart Container Corporation - 200Pc","Approved Equivalent",{"$nulls":9},0]
["BE9E34CD91AEACB26AE9EB2227C6BA32",126,"","Disposables and Supplies: Cups","Cup Portion Plastic 5.5Oz Trans","20 / 125.0 Count","230 Cases","Dart Container Corporation - 550Pc","Approved Equivalent",{"$nulls":9},0]
["6C5FE8805176D8C29205A30529C33F90",127,"","Disposables and Supplies: Cups","Cup Translucent 5Oz Conex","25 / 100.0 Count","105 Cases","Dart Container Corporation - Y5","Approved Equivalent",{"$nulls":9},0]
["2768358791D7DDD5FE1F2F8E3F0BB454",128,"","Disposables and Supplies: Cups","Kit Parfait/Grabngo 12Oz Cup/2Cp Insr/Ld","1 / 500.0 Count","105 Cases","Dart Container Corporation - Pf35c2cp","Approved Equivalent",{"$nulls":9},0]
["3EC4DFFCF31DEC1D1806367CE53DA000",129,"","Disposables and Supplies: Gloves","Glove Vinyl Powderfree Lg  78161","10 / 100.0 Count","193 Cases","Restaurant Pride (F.A.B.) - 78161","Approved Equivalent",{"$nulls":9},{"$f":"P131 * R131","v":0}]
["2916FAA15F8FB77928728060C8519102",130,"","Disposables and Supplies: Gloves","Glove Vinyl Powderfree Med 97545","10 / 100.0 Count","153 Cases","Restaurant Pride (F.A.B.) - 97545","Approved Equivalent",{"$nulls":9},0]
["2A2390EC8D8E78A7B118DA5B71AAB825",131,"","Disposables and Supplies: Gloves","Glv Ltx Yl Gp Med 303400532","4 / 12.0 Each","10 Cases","Handgards Inc. - 456794","Approved Equivalent",{"$nulls":9},0]
["A9F1832E6C4F3B2C1661EA0A1B7E92B8",132,"","Disposables and Supplies: Gloves","Spec Glv Ltx Yl Gp Lg 303400533","4 / 12.0 Each","10 Cases","Handgards Inc. - 456794","Approved Equivalent",{"$nulls":9},0]
["54C7343E9C40F4BF47FD891AE537AC6E",133,"","Disposables and Supplies: Gloves","Glove Vinyl Powdered Extra Large","10 / 100.0 Count","15 Cases","Restaurant Pride (F.A.B.) - 61978","Approved Equivalent",{"$nulls":9},0]
["3CA1A75734AB15E699BBB788365A29A8",134,"","Disposables and Supplies: Inserts","Dish Insert 6 Oz Blk Xtr Dp 3.5X3.5X1.5","1 / 2000.0 Count","625 Cases","WNA - 21860","Approved Equivalent",{"$nulls":9},0]
["D7A270B27CB9A1EAD2DAD3B3875BAD3E",135,"","Disposables and Supplies: Lids","Lid Clear Flat No Vent 9-10 Oz","1 / 1000.0 Count","35 Cases","Dart Container Corporation - 610Tp","Approved Equivalent",{"$nulls":9},0]
["0E6E8EEDEE2AB149CCB7EB67324FF18B",136,"","Disposables and Supplies: Lids","Lid For 2Oz Portion Cup","20 / 125.0 Count","67 Cases","Dart Container Corporation - Pl200n","Approved Equivalent",{"$nulls":9},0]
["51869CF72B32C16873683DC595000969",137,"","Disposables and Supplies: Lids","Lid For Tp16d/Tp20/Td24 Cup W/Straw Slt","10 / 100.0 Count","50 Cases","Dart Container Corporation - 626Ts","Approved Equivalent",{"$nulls":9},0]
["82AE9737EF5DE691B43ED6C53D9EE03C",138,"","Disposables and Supplies: Lids","Lid For Y7,& 3.25,4,5.5Oz Portion Cup","20 / 125.0 Count","132 Cases","Dart Container Corporation - Pl4n","Approved Equivalent",{"$nulls":9},0]
["57213A5C87740C17E7C047435B6B71E0",139,"","Disposables and Supplies: Lids","Lid Insert Dish Clear Universal 29332","1 / 2500.0 Count","10 Cases","WNA - 29332","Approved Equivalent",{"$nulls":9},0]
["CDC35CEF4E36AB1088B55F7D603931C8",140,"","Disposables and Supplies: Napkins","Napkin Xpressnap White 8.5X13\" Dx900","12 / 500.0 Count","154 Cases","SCA North America - 14102900","Approved Equivalent",{"$nulls":9},0]
["1E26CB50ADFEC9A6F4FD210A42889493",141,"","Disposables and Supplies: Plates","Plate Foam 6\" Unlaminated","8 / 125.0 Count","12 Cases","Genpak - 6Pwcr","Approved Equivalent",{"$nulls":9},0]
["249C286F74FDDAA7170FEAF62285889F",142,"","Disposables and Supplies: Plates","Plate Foam 9\" 3 Cmpt Unlaminated","4 / 125.0 Count","28 Cases","Genpak - 9Cpwcr","Approved Equivalent",{"$nulls":9},0]
["C811EBFFCD49328615F666B7F54F0502",143,"","Disposables and Supplies: Straws & Stirrers","Straw Jumbo 7-3/4\" Wrappd Tr 1244022","24 / 500.0 Count","65 Cases","Berkley Square Products Co. - Dsjw24-500","Approved Equivalent",{"$nulls":9},0]
["0DBD3DE9BBB827FE02ECD3D294E2EFBB",144,"","Disposables and Supplies: Straws & Stirrers","Straw Milk 5-3/4\" Wrapped","24 / 500.0 Count","3 Cases","Berk Enterprises Inc - Msw24-500S","Approved Equivalent",{"$nulls":9},0]
["090CB31D131362E08CB7D81C8E109543",145,"","Disposables and Supplies: Towels, Sheets & Paper","Towel Multifold Natural 9.25X9.5 H175","16 / 250.0 Count","12 Cases","Cascade (Procter & Gamble (P&G)) - H175","Approved Equivalent",{"$nulls":9},0]
["1ABB3B02A7290EB7438002DCD07EDB86",146,"","Disposables and Supplies: Towels, Sheets & Paper","Towel Roll Wrpd 2Ply 85Ct 11X8.8 100%Rec","30 Each","21 Cases","Cascades Tissue Group - K085/Kt230","Approved Equivalent",{"$nulls":9},0]
["7380EA15E96FFC66A0356C3BD5C902E7",147,"","Disposables and Supplies: Towels, Sheets & Paper","Towelette Moist Wipes Lemon Scent Rf1mb","1 / 1000.0 Count","10 Cases","Royal Paper Products, Inc. - Rf1mb","Approved Equivalent",{"$nulls":9},0]
["F4A265BF399F9D3312053FA00036E56C",148,"","Disposables and Supplies: Trays","Tray Foam 5Cmpt Black School","1 / 500.0 Count","3,320 Cases","Pactiv LLC - Ythb0500sg","Approved Equivalent",{"$nulls":9},0]
["5406A8E4A8EC36D26A6B5DB6C710AB9C",149,"","Disposables and Supplies: Trays","Tray Foam H/L Lg 3Cmp 9X9x3 Valuewr","1 / 200.0 Count","47 Cases","Dart Container Corporation - 90Ht3r","Approved Equivalent",{"$nulls":9},0]
["ED110DCBA0229846AA4211F3DA3AC035",150,"","Disposables and Supplies: Trays","Tray Foam School 5Cmpt Wht 10X8x1-3/16","1 / 500.0 Count","3,320 Cases","Genpak - Yth10500sg","Approved Equivalent",{"$nulls":9},0]
["67A9BD423A622F49DB961A7973F41A9B",151,"","Disposables and Supplies: Trays","Tray Foam School 6Cmpt Wht 11.5X8.5X1-1","1 / 500.0 Count","355 Cases","Pactiv LLC - Oth1060100","Approved Equivalent",{"$nulls":9},0]
["2AF00903C113F9EA2E9E246D67975B85",152,"","Disposables and Supplies: Trays","Tray Food 2# Red Design #200","4 / 250.0 Count","80 Cases","Southern Champion Tray, LP (SCT) - 417","Approved Equivalent",{"$nulls":9},0]
["EB2A52C9F0FAF480E6FE5D930AF09B56",153,"","Disposables and Supplies: Trays","Tray Food 4Oz Red Design #25","4 / 250.0 Count","220 Cases","Southern Champion Tray, LP (SCT) - 401","Approved Equivalent",{"$nulls":9},0]
["F2C54AF2CB45E33EF920DB70E7B17348",154,"","Disposables and Supplies: Trays","Tray Food 8Oz Red Design #50","4 / 250.0 Count","170 Cases","Southern Champion Tray, LP (SCT) - 409","Approved Equivalent",{"$nulls":9},0]
["15D9D8940D7D99AE60086152EB31976E",155,"","Disposables and Supplies: Trays","Tray Hngd Lid Clr Med 3Cmpt 8.25X8.25X3","1 / 250.0 Count","60 Cases","Dart Container Corporation - C90pst3","Approved Equivalent",{"$nulls":9},0]
["86C483EAF07080D8F83DE8FD156B8E53",156,"","Disposables and Supplies: Utensils","Fork Iw Med White 1102000","1 / 1000.0 Count","523 Cases","Berkley Square Products Co. - P1001wr","Approved Equivalent",{"$nulls":9},0]
["45DFD7A97A3DE3C861F11DC7E349BA67",157,"","Disposables and Supplies: Utensils","Kit Meal (Spork,Mlk Strw,Nap)","1 / 1000.0 Count","1,023 Cases","D & W Fine Pack LLC - Pskf1000","Approved Equivalent",{"$nulls":9},0]
["6079F048E8A7BD49965ABF5CEAD3095A",158,"","Disposables and Supplies: Utensils","Spoon Iw Med White 1103000","1 / 1000.0 Count","263 Cases","Berkley Square Products Co. - P1003wr","Approved Equivalent",{"$nulls":9},0]
["698B9086B45D7A9DD2FCC3A9C639EDA3",159,"","Disposables and Supplies: Wraps","Liner Pan Bakery 16-3/8X24-3/8 Quilon","1 / 1000.0 Count","143 Cases","Handy Wacks Corporation - Pl-25-1","Approved Equivalent",{"$nulls":9},0]
["D34A095589E86FF163800906FE7C4B5B",160,"","Disposables and Supplies: Wraps","Wrap Film 24\"X2000' Pvc Cutter Box","1","86 Rolls","Restaurant Pride (F.A.B.) - 142Fa","Approved Equivalent",{"$nulls":9},0]
["682D671C4D490E3FF78E34052FAEC39D",161,"","Disposables and Supplies: Wraps","Wrap Foil 12X10-3/4 Pop Up Sheets 634Fa","6 / 500.0 Count","62 Cases","Restaurant Pride (F.A.B.) - 634Fa","Approved Equivalent",{"$nulls":9},0]
["65DF0EA36E52FF0994ADE2DF2F811DA0",162,"","Disposables and Supplies: Wraps","Wrap Paper  Deli 10x10x10 3/4 Med","12 / 500.0 Count","25 Cases","Handy Wacks Corporation - FW-10","Approved Equivalent",{"$nulls":9},0]
["5149463C57130B71369C527B4DC6D9DF",163,"","Eggs: Fresh Eggs","Egg Med 7.5Doz Rp Grade Aa Usda Fresh","1 / 7.5 Dozen","7 Cases",{"$nulls":11},0]
["E706E51F76BD63C5E893F0469D509C91",164,"","Eggs: Precooked Eggs","Egg Scrambled Patty 3.5\" Round Cn=1Mt","300 / 1.25 Ounces","124 Cases","Michael Foods, Inc. - 4602585017","Approved Equivalent",{"$nulls":9},0]
["6E5266D35D965893F51252A32C02039C",165,"","Eggs: Precooked Eggs","Precooked Refridgerated Scrambled Eggs","12 / 1.85 Pounds","800 Cases","Papetti (Michael Foods, Inc.) - 46025-85877-00","Approved Equivalent",{"$nulls":9},0]
["63849EB7700EF1324A1E2656A8DE5003",409,"","Ethnic Foods: Crispy Noodles","Chow Mein Noodles W/Veg Sau Wg 2.8Oz=2Ge","1 / 14.0 Pounds","1,060 Cases","Yangs 5th Taste (formerly Ling's 5th Taste) - 00301-6","Approved Equivalent",{"$nulls":9},0]
["9664D9140736C2F37B1E78BC20703ECC",410,"","Ethnic Foods: Egg Roll","Egg Roll Vegetable Wg Cn=1Ge&.5 C Veg","100 / 3.0 Ounces","840 Cases","Asian Food Solutions - 79011","Approved Equivalent",{"$nulls":9},0]
["DCB38031008BE7CED0B48705A9382FC0",411,"","Ethnic Foods: Taco","Chicken Tacos Mini Wg Cn 3=2Mt&2Ge","297 / 1.35 Ounces","702 Cases","Tasty Brands, LLC. - 25701","Approved Equivalent",{"$nulls":9},0]
["2F7A2B41BC95873CAD8467E30E737FD0",412,"","Fruits: Applesauce","Sauce Apple Unsweet","6 / 10.0 Cans","665 Cases","Restaurant Pride (F.A.B.) - 8190Apl01","Approved Equivalent",{"$nulls":9},0]
["B1A92693FA3E260CE843C42E5D0DE9C6",413,"","Fruits: Cranberries","Cranberry Sweetened Dried","2 / 48.0 Ounces","85 Cases","Ocean Spray Cranberries - 21992","Approved Equivalent",{"$nulls":9},0]
["8CAA98C5EA004E109A65885B1AB93468",414,"","Fruits: Cranberry Sauce","Sauce Cranberry Jellied","6 / 101.0 Ounces","25 Cases","Ocean Spray Cranberries - 1401","Approved Equivalent",{"$nulls":9},0]
["114E41C11541F5373F2ED133B5E4354D",415,"","Fruits: Mixed Fruit","Cocktail Fruit Juice Fruit Mix","6 / 10.0 Cans","200 Cases","Restaurant Pride (F.A.B.) - 4820047451","Approved Equivalent",{"$nulls":9},0]
["EE5F0008BBE5201C7718B9F5624BB03A",416,"","Fruits: Oranges","Orange Mandarin Juice Cup 1/2 C Fruit","36 / 4.0 Ounces","80 Cases","Dole Food Company, Inc. - 4208","Approved Equivalent",{"$nulls":9},0]
["150CF1ED4D5FE1B727525401867B6574",417,"","Fruits: Peaches","Peach Diced Juice  L/S Juice","6 / 10.0 Cans","20 Cases","Restaurant Pride (F.A.B.) - 4820057181","Approved Equivalent",{"$nulls":9},0]
["EE108BE1FB012AC1BE4384A70C7D27E5",418,"","Fruits: Peaches","Peach Diced Juice Cup","36 / 4.0 Ounces","80 Cases","Dole Food Company, Inc. - 3073","Approved Equivalent",{"$nulls":9},0]
["DB4501B87B1569267C65FC70127D6EFE",419,"","Fruits: Peaches","Peach Slice Juice","6 / 10.0 Cans","473 Cases","Sunfield - 4820047544","Approved Equivalent",{"$nulls":9},0]
["03DA73983456AB14CA7C3525336936B6",420,"","Fruits: Pears","Pear Diced Juice","6 / 10.0 Cans","246 Cases","Restaurant Pride (F.A.B.) - 4820047625","Approved Equivalent",{"$nulls":9},0]
["E2AFC402BB4504753D6B03DE2A1D0C74",421,"","Fruits: Pears","Pear Sliced Juice","6 / 10.0 Cans","13 Cases","Restaurant Pride (F.A.B.) - 4820047615","Approved Equivalent",{"$nulls":9},0]
["83B8B7E733BAC72F5DF26DC0566C4BBF",422,"","Fruits: Pineapple","Pineapple Chunk Juice","6 / 10.0 Cans","855 Cases","Restaurant Pride (F.A.B.) - 4820047707","Approved Equivalent",{"$nulls":9},0]
["118CADFA6C12A4661369848D06B20372",423,"","Fruits: Pineapple","Pineapple Tidbit Juice Cup 1/2 C Fruit","36 / 4.0 Ounces","80 Cases","Dole Food Company, Inc. - 419","Approved Equivalent",{"$nulls":9},0]
["BEF69E31AA01B340B778803F104075AF",424,"","Fruits: Raisins","Raisin Ind Seedless","144 / 1.5 Ounces","100 Cases","Boghosian Raisin Packing Co, Inc. - 5318","Approved Equivalent",{"$nulls":9},0]
["93B54063446B267B3445667611AA9C1A",425,"","Gravies, Glazes & Sauces","Gravy Mix Peppered Ls Ztf","12 / 12.0 Ounces","72 Cases","Conestoga (C.H. Guenther & Son, Inc.) - 99484","Approved Equivalent",{"$nulls":9},0]
["C047C84FB48D86827AEDF5920524D5E6",426,"","Gravies, Glazes & Sauces: Alfredo Sauce","Sauce Mix Alfredo Instant","8 / 14.0 Ounces","150 Cases","Foothill Farms (Kent Precision Foods Group Inc. (Precision Foods)) - 575T-T0700","Approved Equivalent",{"$nulls":9},0]
["DF7ACEB731F5979E2F7C5538AB5B44BE",427,"","Gravies, Glazes & Sauces: Barbeque Sauce","Sauce Bbq Mild 537100","4 / 1.0 Gallons","33 Cases","Heinz (The Kraft Heinz Company) - 78002745","Approved Equivalent",{"$nulls":9},0]
["DA7F29D86ACA9E7C79EE81407B265509",428,"","Gravies, Glazes & Sauces: Barbeque Sauce","Sauce Bbq Rs Cup","100 / 1.0 Ounces","600 Cases","Diamond Crystal Brands - 70809","Approved Equivalent",{"$nulls":9},0]
["DC9B1301DB4C56C9BCC0C4CFC3E281CC",429,"","Gravies, Glazes & Sauces: Cheese Sauce","Bean and Two Cheeses Dip","48 / 3.35 Ounces","1,000 Cases","Los Cabos (MCI Foods, Inc.) - 73342","Approved Equivalent",{"$nulls":9},0]
["1335B78446228CB5A4D8CC30FB62FBEE",430,"","Gravies, Glazes & Sauces: Cheese Sauce","Sauce Queso Cheese Bib 2Oz=1Mt","6 / 5.0 Pounds","470 Cases","JTM Provisions - 5718","Approved Equivalent",{"$nulls":9},0]
["4D1856EBED80950278C466519BEB8576",431,"","Gravies, Glazes & Sauces: Enchilada Sauce","Sauce Mix Enchilada Rs W Chiles","8 / 8.0 Ounces","45 Cases","Foothill Farms (Kent Precision Foods Group Inc. (Precision Foods)) - V532-F6190","Approved Equivalent",{"$nulls":9},0]
["F4D36E2C78C9B6FA1E71FDADCB822731",432,"","Gravies, Glazes & Sauces: Gravy","Mix Gravy Chic L/S Ff","8 / 22.6 Ounces","30 Cases","Trio (Nestle USA) - 38482","Approved Equivalent",{"$nulls":9},0]
["24F4F320014B5DD7C2BFE247F839EB57",433,"","Gravies, Glazes & Sauces: Hot Sauce","Sauce Hot Ind","200 / 7.0 Grams","835 Cases","C.F. Sauer Company - 6317","Approved Equivalent",{"$nulls":9},0]
["5DDB442406A50717EAB7A02806CB357F",434,"","Gravies, Glazes & Sauces: Marinara Sauce","Sauce Marinara Cup 1/2 Veg","84 / 2.5 Ounces","2,600 Cases","Red Gold, Inc. - 82207","Approved Equivalent",{"$nulls":9},0]
["BC57DB1375308BFC7B0A5BEB4667E2F9",435,"","Gravies, Glazes & Sauces: Spaghetti Sauce","Sauce Spaghetti Vitamin Enhanced L/S","6 / 10.0 Cans","970 Cases","RedPack (Red Gold, Inc.) - Rpkma9e","Approved Equivalent",{"$nulls":9},0]
["B15F6F342A61407FFD154B6510773F8E",436,"","Gravies, Glazes & Sauces: Worcestershire Sauce","Sauce Worcestershire L/S","4 / 1.0 Gallons","10 Cases","Restaurant Pride (F.A.B.) - 46251","Approved Equivalent",{"$nulls":9},{"$f":"P195 * R195","v":0}]
["35FB2FDBD05D08BFD0F72B97E06B2A14",437,"","Hot Dogs, Corn Dogs & Wrapped Meats: Hot Dogs","Turkey Corn Dog Wg Cn=2Mt&2Ge","72 / 4.0 Ounces","250 Cases","State Fair Foods, Inc. (Tyson Foods, Inc.) - 9988","Approved Equivalent",{"$nulls":9},0]
["A1DDCC30F2D371B39100472CF2444400",438,"","Hot Dogs, Corn Dogs & Wrapped Meats: Hot Dogs","Wiener 8-1 6\" Pork/Beef  Low Sodium","1 / 10.0 Pounds","490 Cases","Field Packing Co.  - 05626/0205","Approved Equivalent",{"$nulls":9},0]
["474C8BC8E3AFE2C380A334ADE4C56A40",439,"","Hot Dogs, Corn Dogs & Wrapped Meats: Wrapped Sausage","Sausage Patty Fc Cn =1Mt Apx3\"","250 / 1.2 Ounces","204 Cases","AdvancePierre (AdvancePierre Food) - 3850","Approved Equivalent",{"$nulls":9},0]
["CBFF7DF0D3AB8F8327C83355D735063B",440,"","Hot Dogs, Corn Dogs & Wrapped Meats: Wrapped Sausage","Tornado Maple Egg & Sausage","144 / 2.79 Ounces","100 Cases","Ruiz Food Products, Inc. - 86830","Approved Equivalent",{"$nulls":9},0]
["2885A6F6792296C589FC7748A9F62D18",441,"","Hot Dogs, Corn Dogs & Wrapped Meats: Wrapped Sausage","Tornado Turkey Sausage Cheese","144 / 2.79 Ounces","590 Cases","Ruiz Food Products, Inc. - 86969","Approved Equivalent",{"$nulls":9},0]
["FD8B066F9CD0095AF9EC4A6F54296EE1",442,"","Jams, Jellies & Spreads: Jelly","Jelly Asst #1 Grape Strawb Apple","200 / 0.5 Ounces","323 Cases","C.F. Sauer Company - 6371","Approved Equivalent",{"$nulls":9},0]
["363545105D0C577EF22AABF9EDAB2CAF",443,"","Lunchmeat","Ham Sliced 2/3 Oz","6 / 2.0 Pounds","22 Cases","Specialty Foods Group, Inc. - 5940","Approved Equivalent",{"$nulls":9},0]
["DB9D18879B6AD08FE7C9998F67C3067A",444,"","Lunchmeat","Turkey Brst O/R Sliced 2/3 Oz","6 / 2.0 Pounds","160 Cases","Specialty Foods Group, Inc. - 5930","Approved Equivalent",{"$nulls":9},0]
["45BC6C031B2818063DF9B7A5FE6E9060",445,"","Meat & Meat Substitutes: Beef","Beef Grnd 85/15 Frozen","1 / 10.0 Pounds","1,185 Cases",{"$nulls":11},0]
["223819C03429E0FF5C406894F5B18A74",446,"","Meat & Meat Substitutes: Beef","Meatball Fc Beef 1/2 Oz 5=2Mt Cn W/Soy","960 / 0.5 Ounces","147 Cases","AdvancePierre (AdvancePierre Food) - 3-17-505-0","Approved Equivalent",{"$nulls":9},0]
["AD345B7DA8BC248ACFD84BB2B49144C2",447,"","Meat & Meat Substitutes: Beef","Mix Beef Gravy Roasted Ls Wg Tff","6 / 13.0 Ounces","315 Cases","Pioneer (C.H. Guenther & Son, Inc.) - 212646","Approved Equivalent",{"$nulls":9},0]
["9836C57A68605E3E132A5FA64A44DA9D",448,"","Meat & Meat Substitutes: Beef","Steak Beef Brd Fc Wg=1Mt&.50Ge Hourglass","250 / 1.97 Ounces","20 Cases","AdvancePierre (AdvancePierre Food) - 68033","Approved Equivalent",{"$nulls":9},0]
["1F51D15E4863A541C6E605ED45FD8D8D",449,"","Meat & Meat Substitutes: Pork","Bbq Pulled Pork W/Sauce Frz","8 / 5.0 Pounds","75 Cases","Nicks Famous Bar-B-Q - 23452","Approved Equivalent",{"$nulls":9},0]
["367FDB4FA460E4BAA8B09901CB46BC34",450,"","Pasta","Gluten Free Elbow Macaroni","12 / 12.0 Ounces","5 Cases",{"$nulls":11},0]
["BB9FC8738E61FADF19EC8BA71CFCE868",451,"","Pasta","Macaroni Elbow WG Pasta","2 / 10.0 Pounds","140 Cases","Orefresco (F.A.B.) - 4820098015","Approved Equivalent",{"$nulls":9},0]
["12B3A4C3235FDF7CE0AB6C36A975CA49",452,"","Pasta: Pasta Noodles","Pasta Penne Gf","12 / 8.0 Ounces","10 Cases","Barilla America, Inc. - 11509","Approved Equivalent",{"$nulls":9},0]
["D6EBE454165AA39AB2D99BF97035F844",453,"","Pasta: Pasta Noodles","Pasta Penne Rigati Wg","2 / 10.0 Pounds","225 Cases","Orefresco (F.A.B.) - 4820073389","Approved Equivalent",{"$nulls":9},0]
["B1404A16CB78A64AD5FACE1AAFD75EF1",454,"","Pasta: Pasta Noodles","Pasta Spaghetti Gf","12 / 12.0 Ounces","5 Cases","Barilla America, Inc. - 11277","Approved Equivalent",{"$nulls":9},0]
["A3FC430F790A0E20BAD42178BC1D7569",455,"","Pasta: Pasta Noodles","Spaghetti 10\" Wg Pasta","2 / 10.0 Pounds","240 Cases","Orefresco (F.A.B.) - 4820096208","Approved Equivalent",{"$nulls":9},0]
["B305F72A98299D1A21EA2B6B13E7D38C",456,"","Pizza, Stromboli & Calzones: Pizza","Crust Pizza Gluten Free Parbak 10\"","20 / 5.1 Ounces","8 Cases","Udi's Gluten Free (ConAgra Brands) - 80643","Approved Equivalent",{"$nulls":9},0]
["7C40F327A01DA2D3ECA7E3372A10C1A3",457,"","Pizza, Stromboli & Calzones: Pizza","Pizza Bkfst Sausage Gravy Wg Cn=1M&1.5G","128 / 3.0 Ounces","315 Cases","Tony's (The Schwan Food Company) - 78352","Approved Equivalent",{"$nulls":9},0]
["23D3DF01C2C48447E2D088847D1B8632",458,"","Pizza, Stromboli & Calzones: Pizza","Pizza Cheese Ffk Plus Wg Lar=2Mt&2G","60 / 5.0 Ounces","290 Cases","Gilardi Foods - 12724","Approved Equivalent",{"$nulls":9},0]
["F59898B45805AB08057D1E2B5F954E01",459,"","Pizza, Stromboli & Calzones: Pizza","Pizza Cheese Turkey Pepperoni Lun Kit","48 / 5.58 Ounces","175 Cases","Tasty Brands, LLC. - 10102","Approved Equivalent",{"$nulls":9},0]
["EC82B419D6679539132CEF0E629A5F35",460,"","Pizza, Stromboli & Calzones: Pizza","Pizza Cheese Wg 4X6 Cn=2M&2Ge Thick Crus","96 / 5.1 Ounces","300 Cases","Tony's (The Schwan Food Company) - 68521","Approved Equivalent",{"$nulls":9},0]
["A02314C57983B8238458EAFBD40A0EA6",461,"","Pizza, Stromboli & Calzones: Pizza","Pizza Cheese Wg Lun Kit Iw Wg=2Mt","48 / 5.25 Ounces","175 Cases","Tasty Brands, LLC. - 10101","Approved Equivalent",{"$nulls":9},0]
["FB12F74E384DE68B354BEE4A63E05BBF",462,"","Pizza, Stromboli & Calzones: Pizza","Pizza Chs Gar Fr Bd W/Box Cn=2Mt&2G","40 / 4.5 Ounces","290 Cases","Nardone Brothers Baking Co. - 40Wgum","Approved Equivalent",{"$nulls":9},0]
["BCB0519C7E65DD3C82F6E61DD92DBE36",463,"","Pizza, Stromboli & Calzones: Pizza","Pizza Chs Wed Ww Cn=2Mt&2Ge","96 / 5.0 Ounces","290 Cases","Nardone Brothers Baking Co. - 96Wwed2","Approved Equivalent",{"$nulls":9},0]
["2A12FA1D86C93008FA5C3213CD38BC14",464,"","Pizza, Stromboli & Calzones: Pizza","Pizza Pep 4X6 Ww W/Box Cn=2Mt&2Ge","40 / 5.0 Ounces","390 Cases","Nardone Brothers Baking Co. - 401Wmp2","Approved Equivalent",{"$nulls":9},0]
["7FE1FE0D022495A370A5B31B5BC8A231",465,"","Pizza, Stromboli & Calzones: Pizza","Pizza Pep Wed Ww Cn=2Mt&2Ge","96 / 5.0 Ounces","390 Cases","Nardone Brothers Baking Co. - 96Wwedp2","Approved Equivalent",{"$nulls":9},0]
["6B819EE56FCA7BBC35AA1FAA287C74B4",466,"","Potatoes","Fry French Infinity Kk 3/8 Deep V","6 / 5.0 Pounds","870 Cases","J.R. Simplot Company - 7117903628","Approved Equivalent",{"$nulls":9},0]
["8DE5DB0BE014FFBBA16E460477F02537",467,"","Potatoes","OIF03456 Potato Smile 624  ct 4=1/2 C veg","6 / 4.0 Pounds","230 Cases",null,"Approved Equivalent",{"$nulls":9},0]
["C2E136C6516D4B2583164AC3FB6DC1F8",468,"","Potatoes","Potato Pearl Excel","12 / 28.0 Ounces","435 Cases","Basic American Foods, Inc. - 76468","Approved Equivalent",{"$nulls":9},0]
["A332A20C741E8E61B42A7C386DA671B1",469,"","Potatoes","Potato White Whole 90/110","6 / 10.0 Cans","440 Cases","Restaurant Pride (F.A.B.) - 4820069392","Approved Equivalent",{"$nulls":9},0]
["2FF49A3490C617793800F88052D26B6C",470,"","Potatoes","Tot Tater Tasty Tff 0418","6 / 5.0 Pounds","220 Cases","Restaurant Pride (F.A.B.) - 4820027597","Approved Equivalent",{"$nulls":9},0]
["FA0A8466CFDBD113F7373663A35C4C2F",471,"","Potatoes","Yam Syrup Pk Cut L/S Sweet Potato","6 / 10.0 Cans","90 Cases","Restaurant Pride (F.A.B.) - 482004441","Approved Equivalent",{"$nulls":9},0]
["FD2DC15D6AABAD7C5DD7284717D14C0A",472,"","Poultry & Poultry Substitutes: Chicken","Chix Brst Chunk Brd Hot Wg 10=2Mt&1Ge","1120 / 0.45 Ounces","60 Cases","Tyson Foods, Inc. - 028686-928","Approved Equivalent",{"$nulls":9},0]
["38871476017AC90051802483CC914D17",473,"","Poultry & Poultry Substitutes: Chicken","Chix Brst Fillet Brd Fc Wg=2Mt&1Ge Solid","132 / 3.75 Ounces","495 Cases","Tyson Foods, Inc. - 70302-928","Approved Equivalent",{"$nulls":9},0]
["D5751C839835ED678C6DEF2CF93F0ED1",474,"","Poultry & Poultry Substitutes: Chicken","Chix Brst Patty Spicy Fc Wg Cn=2Mt&1Ge","104 / 3.0 Ounces","470 Cases","Pro View Foods - 50011Wg","Approved Equivalent",{"$nulls":9},0]
["EDF2007AAE796274EC4260CBDF39D13B",475,"","Poultry & Poultry Substitutes: Chicken","Chix Brst Patty Wg Cn=1Mt&.5Ge","198 / 1.6 Ounces","300 Cases","Pro View Foods - 50515Wg","Approved Equivalent",{"$nulls":9},0]
["A24D80A8EDC1B2E1241D573D93F4FBF6",476,"","Poultry & Poultry Substitutes: Chicken","Chix Bst Tenders Bd Fc Gf-4.55=2Mt","2 / 5.0 Pounds","8 Cases","Harvestland (Perdue Farms Incorporated) - 56203","Approved Equivalent",{"$nulls":9},0]
["9B85F1A593B4571334043ECFF8E7DC80",477,"","Poultry & Poultry Substitutes: Chicken","Chix Drumstick Brd Fc Wg =2Mt&.75Ge","92 / 5.15 Ounces","850 Cases","Tyson Foods, Inc. - 666010-928","Approved Equivalent",{"$nulls":9},0]
["2A2AF64CB2870CCCF1B50EEC13D17AC5",478,"","Poultry & Poultry Substitutes: Chicken","Chix Fajita Strip Wht/Dk Fc Cn=2Mt","195 / 2.47 Ounces","280 Cases","Gold Kist Inc. (Pilgrim's Pride Corporation (Pilgrim's)) - 1250","Approved Equivalent",{"$nulls":9},0]
["83454BB15BB8DDFD2E77FC4236BDE31F",479,"","Poultry & Poultry Substitutes: Chicken","Chix Nug Christmas Tree Shp Wg 3=2M","145 / 1.1 Ounces","155 Cases","Brakebush Brothers, Inc. - 5641","Approved Equivalent",{"$nulls":9},0]
["128E4EA799B06E36DA201F8867A2C6E2",480,"","Poultry & Poultry Substitutes: Chicken","Chix Orange Fc Wg 6/5#Chix&6/36Ozsau","1 / 43.5 Pounds","260 Cases","Yangs 5th Taste (formerly Ling's 5th Taste) - 15552-4","Approved Equivalent",{"$nulls":9},0]
["C49DB9C500BA06F0CAF3941CE4B7568A",481,"","Poultry & Poultry Substitutes: Chicken","Chix Popcorn Bd Fc Wg Cn 12=2Mt&1Ge","1908 / 0.28 Ounces","700 Cases","Tyson Foods, Inc. - 70368-928","Approved Equivalent",{"$nulls":9},0]
["842EECDD4E99FD60FFBF17151A361557",482,"","Poultry & Poultry Substitutes: Chicken","Chix Sticks Brd Lun Kit Iw Wg=2Mt&2Ge","48 / 5.34 Ounces","175 Cases","Tasty Brands, LLC. - 10208","Approved Equivalent",{"$nulls":9},0]
["7C8EB2233A7835D1840543B110E9D327",483,"","Poultry & Poultry Substitutes: Chicken","Chix Taco Meat Grd Seas Fc 3Oz=2Mt Frz","1 / 20.12 Pounds","180 Cases","Tyson Foods, Inc. - 19957-328","Approved Equivalent",{"$nulls":9},0]
["0B4A16B4EFCDC79F077C92CDF4A977B8",484,"","Poultry & Poultry Substitutes: Chicken","Chix Wing Bl Wm Brd Fc Gc Wg 5=2Mt&1Ge","630 / 0.79 Ounces","802 Cases","Tyson Foods, Inc. - 70362-928","Approved Equivalent",{"$nulls":9},0]
["761431E76A24C657AA38B0933F35C612",485,"","Poultry & Poultry Substitutes: Chicken","WG Chicken Regular Fully Cooked Breaded Breast Fillets 4 oz.","10.0 Pounds","1,634 Cases","Gold Creek Foods LLC - 5001","Approved Equivalent",{"$nulls":9},0]
["F1F1161EB0E1964D1D9BBE53124C0AB5",486,"","Poultry & Poultry Substitutes: Turkey","#232012 All Natural Uncured Turkey Ham 1.75\" Pre-Sliced Coin 124 srv/cs","6 / 2.0 Pounds","200 Cases",null,"Approved Equivalent",{"$nulls":9},0]
["246F0DBCB00D5A078F8DAAD725EE03A4",487,"","Poultry & Poultry Substitutes: Turkey","#257412 All Natural Smoked Turkey Breast 1.75\" Pre-Sliced Coin 116 srv/cs","6 / 2.0 Pounds","200 Cases",null,"Approved Equivalent",{"$nulls":9},0]
["CBC7BA875BCC312662965D47B430FB00",488,"","Poultry & Poultry Substitutes: Turkey","Turkey Brst O/B Stk 2.82Oz=2Mt","4 / 6.17 Pounds","100 Cases","Jennie-O - 230324","Approved Equivalent",{"$nulls":9},0]
["CB1513CC12CB47275DAA70092081A217",489,"","Poultry & Poultry Substitutes: Turkey","Turkey Diced Cured 1/4\"Pink Like Ham Frz","2 / 5.0 Pounds","256 Cases","Jennie-O - 6420","Approved Equivalent",{"$nulls":9},0]
["4DD888EBBFF5882DD70B7BBEBF804A19",490,"","Prepared Foods: Appetizers","Wild Mikes Cheese Bites Bulk 11003","240 / 1.0 Ounces","1,200 Cases","Wild Mikes (SA Piazza & Assoc.) - 00078642110036","Approved Equivalent",{"$nulls":9},0]
["783AD6D348821972AF442DE8107831AF",491,"","Prepared Foods: Meal Kit","Turkey and Cheese Lunch Kit","48 / 4.21 Ounces","175 Cases","Tasty Brands, LLC. - 10102","Approved Equivalent",{"$nulls":9},0]
["3C8E53661E7E1F77C3E811BBD5E7C14B",492,"","Prepared Foods: Meal Kit","Turkey Ham and Cheese Lunch Kit","48 / 3.81 Ounces","175 Cases","Tasty Brands, LLC. - 10102","Approved Equivalent",{"$nulls":9},0]
["B0A37BD43BFDE9403674425023F0AA40",493,"","Prepared Foods: Sandwiches: Peanut Butter Sandwich","Sandwich Soy Btr Jelly Grape Wg 1 Mt 1Bd","72 / 2.4 Ounces","60 Cases","EZ Jammers (Albie's Foods Inc.) - 607","Approved Equivalent",{"$nulls":9},0]
["03626B73249F48CE3C6D0CD9F2D9B0DC",494,"","Rice, Barley & Other Grains: Rice","Rice Brown Wg Parboiled 241 Cup Avg","1 / 25.0 Pounds","128 Cases","Producer's Rice Mill, Inc. - R2px25qc0","Approved Equivalent",{"$nulls":9},0]
["1DF0E31EA4EAB907C00708FAD6C0D7E0",495,"","Rice, Barley & Other Grains: Rice","Rice Cilantro Lime","10 / 6.0 Ounces","125 Cases","Foothill Farms (Kent Precision Foods Group Inc. (Precision Foods)) - S162-F6190","Approved Equivalent",{"$nulls":9},0]
["55AF2FA6A23189206658FF28273A41C5",496,"","Salad Dressing","Dressing Balsamic Vinagrette","4 / 1.0 Gallons","5 Cases","Ken's Foods, Inc. - 955","Approved Equivalent",{"$nulls":9},0]
["AECEFBA7C10946E106550D80A92EDF60",497,"","Salad Dressing","Dressing Bleu Cheese Supreme Refr","4 / 1.0 Gallons","10 Cases","Ken's Foods, Inc. - 665","Approved Equivalent",{"$nulls":9},0]
["59FF7B266B48B1C0403FC9A6627331BB",498,"","Salad Dressing","Dressing Caesar Creamy Delxe Refr","4 / 1.0 Gallons","10 Cases","Classic Gourmet (Ventura Foods, LLC) - 17718Cgs","Approved Equivalent",{"$nulls":9},0]
["71F8E6832D38B3169917DB24B6551D24",499,"","Salad Dressing","Dressing Cornbread","4 / 4.5 Pounds","110 Cases","Savannah Food Company, Inc. - 33145","Approved Equivalent",{"$nulls":9},0]
["F0223CBD9E70C12C398541719A5CCFC7",500,"","Salad Dressing","Dressing Honey Dijon Ff Ind Pouch","60 / 1.5 Ounces","38 Cases","Ken's Foods, Inc. - 0600B3","Approved Equivalent",{"$nulls":9},{"$f":"P259 * R259","v":0}]
["4B7AE2D816337855BF9E94521EF64FD8",501,"","Salad Dressing","Dressing Ind Ranch Rs/Rf","200 / 12.0 Grams","532 Cases","Diamond Crystal Brands - 73014","Approved Equivalent",{"$nulls":9},0]
["FB66DD383A1AF6C615A57A5B11F745BA",502,"","Salad Dressing","Dressing Ranch Buttermilk Refr","4 / 1.0 Gallons","10 Cases","Restaurant Pride (F.A.B.) - 71734Far","Approved Equivalent",{"$nulls":9},0]
["C7FB6F153D3E1A25A83038D8CC5A5AA0",503,"","Salad Dressing","Dressing Ranch Ff Pouch","60 / 1.5 Ounces","95 Cases","Ken's Foods, Inc. - 0026B3","Approved Equivalent",{"$nulls":9},0]
["B8A07FCFB95438107CD5850BC582F0C1",504,"","Salad Dressing","Dressing Salad","4 / 1.0 Gallons","30 Cases","Gold Medal (General Mills, Inc.) - 6603","Approved Equivalent",{"$nulls":9},0]
["8939E3937B5FDAF1AB1FF63881423DCC",505,"","Salad Dressing","Oil Salad Soybean Tff","6 / 1.0 Gallons","15 Cases","Master Chef (C.F. Sauer Company) - 100087964","Approved Equivalent",{"$nulls":9},0]
["5FF6A58A05FCA333F54DA3353B6030F6",506,"","Shells, Tortillas & Wraps","Wrap Foil 18\"X1000' Std Weight Roll","1","25 Rolls","Restaurant Pride (F.A.B.) - 281Fa","Approved Equivalent",{"$nulls":9},0]
["050D8E486960E4586291C4B379D21F75",507,"","Shells, Tortillas & Wraps: Tortillas & Wraps","Tortl Flour 8\" Wg Tff R/S =1.5 Ge","12 Count","970 Cases","Don Pancho Authentic Mexican Foods (Reser's Fine Foods, Inc.) - 2204/33824","Approved Equivalent",{"$nulls":9},0]
["724B15681981732CBFE852F66ACC8A03",508,"","Small Equipment & Smallwares","*So* Vrt Pn F/S Perf Sup Pn 90023","1 / 1.0 Each","20 Cases","The Vollrath Co., L.L.C. - 432416","Approved Equivalent",{"$nulls":9},0]
["915681262447AADF6246F1A93DE9C641",509,"","Small Equipment & Smallwares: Cleanup","Scrubber/Sponge Cellulose/Nylon 3.75X6.5","1 / 20.0 Count","10 Cases","Royal Paper Products, Inc. - S740c/20","Approved Equivalent",{"$nulls":9},0]
["300B2CB7AA5E928133F0A173AB94489E",510,"","Small Equipment & Smallwares: Cleanup","Sponge S/Steel Large 36Gram  780010","6 / 12.0 Count","20 Cases","Royal Paper Products, Inc. - S730/6","Approved Equivalent",{"$nulls":9},0]
["3D1A5217BB4F207ED6DA2B1919DAB8C2",511,"","Small Equipment & Smallwares: Cleanup: Bottles","Sprayer Trigger & Bottle 24 Oz Grad","1 Each","35 Cases",{"$nulls":11},0]
["71BF0EB373BCF9C6BE623C44F62C0A20",512,"","Small Equipment & Smallwares: Cleanup: Brooms/Dust Pans","Broom Angle 13\"Plastic W/Met/Wd Handle","6 Each","20 Cases","Zephyr Manufacturing Co. - 34088","Approved Equivalent",{"$nulls":9},0]
["7A42E0A953A676C8C8508B17D20FF0B4",513,"","Small Equipment & Smallwares: Cleanup: Cleaning Brushes","Pad Scouring H/D Nylon Green 6X9x3/8","1 / 20.0 Count","10 Cases","Royal Paper Products, Inc. - S860/20","Approved Equivalent",{"$nulls":9},0]
["63783DCD21D2723C97A3F0D004C8A3C7",514,"","Small Equipment & Smallwares: Preparation & Serving","Vrt Pfsp S/S 2Z Blk 61155","1 / 1.0 Each","20 Cases","The Vollrath Co., L.L.C. - 379801","Approved Equivalent",{"$nulls":9},0]
["396D79A3F27841BC6E658C14812463BD",515,"","Small Equipment & Smallwares: Preparation & Serving: Bags","Bag Poly 1/6 Thank You 13Mic Blue Print","1 / 900.0 Count","15 Cases","Breaman Paper - Plbty53","Approved Equivalent",{"$nulls":9},0]
["81F4D289B722FD611877191B18905899",516,"","Small Equipment & Smallwares: Preparation & Serving: Covers/Lids","Cover Bun Pan Rack 52X80 303679971","1 / 50.0 Count","30 Cases","FoodHandler (FoodHandler) - 22Sb52d","Approved Equivalent",{"$nulls":9},0]
["AF0937AB0ACB6F8F023ACF6CB1B1D6DC",517,"","Small Equipment & Smallwares: Preparation & Serving: Cups/Tumblers","Cup Measuring Clr Poly 1 Cup","1 Each","20 Cases","Rubbermaid Inc. - Rcp3210cle","Approved Equivalent",{"$nulls":9},0]
["A79ACC1CFA7F72F0701D7DF3C8850A0B",518,"","Small Equipment & Smallwares: Preparation & Serving: Cutlery/Silverware","Knife 10\" Cook's S145-10Pcp 393389","1 Each","20 Cases","Dexter Russell - 12433","Approved Equivalent",{"$nulls":9},0]
["621DE80A9FF5694DA499C4C216736041",519,"","Small Equipment & Smallwares: Preparation & Serving: Cutlery/Silverware","Knife Cook's 8\" S145-8Pcp 12443","1 Each","20 Cases","Dexter Russell - 393390","Approved Equivalent",{"$nulls":9},0]
["1DA7EA2F05477347EC99B9007C42C981",520,"","Small Equipment & Smallwares: Preparation & Serving: Cutlery/Silverware","Knife Paring 3.25\" Blade S104pcp 393402","1 Each","20 Cases","Dexter Russell - 15303","Approved Equivalent",{"$nulls":9},0]
["D01DD966A2BC70F0CD1EF8CFA62559FF",521,"","Small Equipment & Smallwares: Preparation & Serving: Dippers/Dishers/Scoops","Disher S/S 2 Oz Blue 78-16","1 / 1.0 Each","20 Cases","Hamilton Beach - 381299","Approved Equivalent",{"$nulls":9},0]
["9416260751E9F853ED091E25B66B3B92",522,"","Small Equipment & Smallwares: Preparation & Serving: Dippers/Dishers/Scoops","Spoodle 2 Oz Solid Beige 4360-06","1 Each","20 Cases","Carlisle Foodservice Products - 028-436006","Approved Equivalent",{"$nulls":9},0]
["6FDDAB56B695C1F1591CEB0DAAE05B05",523,"","Small Equipment & Smallwares: Preparation & Serving: Dippers/Dishers/Scoops","Spoodle Perf Ss 4Oz 61170","1 Each","20 Cases","The Vollrath Co., L.L.C. - 379809","Approved Equivalent",{"$nulls":9},0]
["D91EF15F8450A9A365ADDA386FD471FA",524,"","Small Equipment & Smallwares: Preparation & Serving: Dippers/Dishers/Scoops","Vrt Dshr S/S #12 Grn 47142","1 / 1.0 Each","20 Cases","The Vollrath Co., L.L.C. - 379741","Approved Equivalent",{"$nulls":9},0]
["1476B7F63546F186C28AF813B8C5756F",525,"","Small Equipment & Smallwares: Preparation & Serving: Dippers/Dishers/Scoops","Vrt Dshr S/S Sz 6 Wh 47139","1 / 1.0 Each","20 Cases","The Vollrath Co., L.L.C. - 379734","Approved Equivalent",{"$nulls":9},0]
["C0CEDAFA58710686DD4A3F5B37C71ECD",526,"","Small Equipment & Smallwares: Preparation & Serving: Dippers/Dishers/Scoops","Vrt Dshr S/S Sz 8. Gy 47140","1 / 1.0 Each","20 Cases","The Vollrath Co., L.L.C. - 379738","Approved Equivalent",{"$nulls":9},0]
["FC15B647B72E20DF7C63BF75A3CDAF78",527,"","Small Equipment & Smallwares: Preparation & Serving: Measures","Cup Measure 2 Quart Polycarb","1 Each","20 Cases",{"$nulls":11},0]
["A000D768F651EF805AF8B171823EFF69",528,"","Small Equipment & Smallwares: Preparation & Serving: Measures","Cup Measure 4Pc Set Ss","1 / 1.0 Each","20 Cases","Update International - 370-Meacup","Approved Equivalent",{"$nulls":9},0]
["36D6E73FF3F44BCC35FBC05C48A82067",529,"","Small Equipment & Smallwares: Preparation & Serving: Measures","Meas-Cup Plst 4 Qt Clr 1-1 Cnt 400M","1 / 1.0 Count","20 Cases","Cambro Manufacturing - 368231","Approved Equivalent",{"$nulls":9},0]
["CE646DE62BD1F45E1BAD7F61C0BDA63F",530,"","Small Equipment & Smallwares: Preparation & Serving: Measures","Spec Tb/ Spoons-Meas Hd 722","1 / 1.0 Each","20 Cases","Tablecraft - 397426","Approved Equivalent",{"$nulls":9},0]
["EB2A6A44C0C76D0DD3B44D4F0C853228",531,"","Small Equipment & Smallwares: Preparation & Serving: Pots/Pans/Accessories","Pan Sheet Full Sz 18X26 19Ga Alum Baking","1 Each","50 Cases","The Vollrath Co., L.L.C. - 381404","Approved Equivalent",{"$nulls":9},0]
["9D84FCA2DAA7ED83C2A50B72F14D53A8",532,"","Small Equipment & Smallwares: Preparation & Serving: Pots/Pans/Accessories","Pan Steam Alum Full Size 3-3/8\"Deep 61Ga","1 / 50.0 Count","95 Cases","Restaurant Pride (F.A.B.) - 5130Fa","Approved Equivalent",{"$nulls":9},0]
["F4A6135432C063CCCC84F178BA12F663",533,"","Small Equipment & Smallwares: Preparation & Serving: Pots/Pans/Accessories","Pan Steam Alum Half Sz Deep 2.6\" 35Ga","1 / 100.0 Count","20 Cases","Restaurant Pride (F.A.B.) - 5132Pfa","Approved Equivalent",{"$nulls":9},0]
["1847EF67F4A9DFD62DDD3D56F1826417",534,"","Small Equipment & Smallwares: Preparation & Serving: Pots/Pans/Accessories","Pan Stm Tbl 1/2 Sz 2.6\"Deep 40Ga Alum","1 / 100.0 Count","20 Cases","Western Plastics - 5132","Approved Equivalent",{"$nulls":9},0]
["9160809C570D97AE9EB38F4AB233927E",535,"","Small Equipment & Smallwares: Preparation & Serving: Serving Spoons/Ladels","Spoodle Solid Ss 4Oz 61172","1 Each","20 Cases","The Vollrath Co., L.L.C. - 379811","Approved Equivalent",{"$nulls":9},0]
["0AAE8B488DFC32EE848B711FAF31C031",536,"","Small Equipment & Smallwares: Preparation & Serving: Serving Spoons/Ladels","Vrt Spoo 8 Oz Sol Blkh 61182","1 / 1.0 Each","20 Cases","The Vollrath Co., L.L.C. - 493180","Approved Equivalent",{"$nulls":9},0]
["2749AB752CEF8620AAB2ADBF0EC4D435",537,"","Small Equipment & Smallwares: Preparation & Serving: Slicers/Wedgers/Peelers","Slicer Utility 6\"Scallop 393337","1 Each","20 Cases","Dexter Russell - 13303","Approved Equivalent",{"$nulls":9},0]
["A5FD4F481DC90C5BF999463FC326044C",538,"","Small Equipment & Smallwares: Preparation & Serving: Textiles","Hairnet Nylon Brown Large 24\"305Fh24","10 / 144.0 Count","25 Cases","FoodHandler (FoodHandler) - 305-Fh24","Approved Equivalent",{"$nulls":9},0]
["2E9F66EDCBC0BA2E9E8DB06731DFA1D2",539,"","Small Equipment & Smallwares: Preparation & Serving: Textiles","Mitt Oven 17\"Fire Retardant To 425F","1 Each","20 Cases",null,"Approved Equivalent",{"$nulls":9},0]
["E194F356E4EF34DFDF38C8812A0C1E26",540,"","Small Equipment & Smallwares: Preparation & Serving: Textiles","Mitt Oven Terry 24\" To 500 Degrees","1 Each","20 Cases",null,"Approved Equivalent",{"$nulls":9},0]
["B9DE50275FB722F948548F3C896D9FC8",541,"","Small Equipment & Smallwares: Preparation & Serving: Textiles","Potholder 8.5X11.5 Terry 375 Deg Panhdlr","1 Each","150 Cases",null,"Approved Equivalent",{"$nulls":9},0]
["84AEB541062190DD18A2FB2477EA715E",542,"","Small Equipment & Smallwares: Preparation & Serving: Textiles","Towel Terry Kitchen Wht 15X25 Cotton","1 / 12.0 Count","55 Cases",null,"Approved Equivalent",{"$nulls":9},0]
["9F1E65CC964F06445BD774507054ED6C",543,"","Small Equipment & Smallwares: Preparation & Serving: Thermometers/Timers/Scales","Thermometer Dial Pocket(0+220F)","1 Each","40 Cases","Fluke Corporation - T220ak","Approved Equivalent",{"$nulls":9},0]
["D15CA1FCD68782DDEE6A9E3BE44085D4",544,"","Small Equipment & Smallwares: Preparation & Serving: Thermometers/Timers/Scales","Thermometer Digital Pockt(-40+300F)37947","1 Each","100 Cases","Taylor Packaging Corporation - 3516N","Approved Equivalent",{"$nulls":9},0]
["7235C77BBF11902798BFEBEF09FBDD23",545,"","Small Equipment & Smallwares: Preparation & Serving: Thermometers/Timers/Scales","Thermometer Oven Stand/Hang 100-600F","1 Each","40 Cases","Fluke Corporation - Eot1k","Approved Equivalent",{"$nulls":9},0]
["5ACF217BB04B5D489DD1FC620533884E",546,"","Small Equipment & Smallwares: Preparation & Serving: Thermometers/Timers/Scales","Thermometer Refr/Freezer(-40+80F)","1 Each","100 Cases","Fluke Corporation - Fg80ak","Approved Equivalent",{"$nulls":9},0]
["CCD5AA4CBB354A25D42075408A613318",547,"","Small Equipment & Smallwares: Preparation & Serving: Tongs","Tong 9.5\" Ss Utility Spring 47110","1 Each","20 Cases","The Vollrath Co., L.L.C. - 379727","Approved Equivalent",{"$nulls":9},0]
["273C4DFFE9E6518587BCCD2456E9CF7D",548,"","Small Equipment & Smallwares: Preparation & Serving: Turners/Spatulas/Scrapers","Vrt Spat Pla Wh 13.625 52013","1 / 1.0 Each","20 Cases","The Vollrath Co., L.L.C. - 429530","Approved Equivalent",{"$nulls":9},0]
["97343570CC017F891B32867CD53CFD36",549,"","Small Equipment & Smallwares: Preparation & Serving: Whips/Whisks/Mashers","Whip Piano 12\" Pn-12 Whisk","1 Each","20 Cases","Winco Industries - 685508","Approved Equivalent",{"$nulls":9},0]
["00540E7E9CAF2CE6A36A0B4C3610554D",550,"","Snack Foods","Snack Presidents Smart Wg/Tff=1Ge Sc8802","120 / 1.0 Ounces","60 Cases","Dick & Jane Baking Company - Sc 8802","Approved Equivalent",{"$nulls":9},0]
["6FE33A9CC95EB1F9212B5E63AED36C04",551,"","Snack Foods: Chips","Chip Baked Lays Original","60 / 0.88 Ounces","25 Cases","Frito-Lay, Inc. (PepsiCo) - 33625","Approved Equivalent",{"$nulls":9},0]
["D3023078EE345FC370B1BC900D756F6D",552,"","Snack Foods: Chips","Chip Baked Ruffles Ched & Sc","60 / 0.8 Ounces","33 Cases","Frito-Lay, Inc. (PepsiCo) - 56882","Approved Equivalent",{"$nulls":9},0]
["2A15AEFBBC358B47E83423FF7ECC6ABD",553,"","Snack Foods: Chips","Chip Dorito Cool Ranch Rf Wg","72 / 1.0 Ounces","70 Cases","Frito-Lay, Inc. (PepsiCo) - 36096","Approved Equivalent",{"$nulls":9},0]
["2100716FED55BB78C32311C366F41333",554,"","Snack Foods: Chips","Chip Dorito Nacho Rf Wg","72 / 1.0 Ounces","130 Cases","Frito-Lay, Inc. (PepsiCo) - 31748","Approved Equivalent",{"$nulls":9},0]
["E1B8807BDCEE13994CE65ED445AABBB7",555,"","Snack Foods: Chips","Chip Tortl Tostito Rf Wg=2Ge","64 / 1.45 Ounces","270 Cases","Frito-Lay, Inc. (PepsiCo) - 30103","Approved Equivalent",{"$nulls":9},0]
["652C1EE37D7674338AFBD23C4CD5A02C",556,"","Snack Foods: Crackers","Cracker Cheez-It Wg =1Brd","175 / 0.75 Ounces","240 Cases","Keebler (Kellogg Company) - 2410079263","Approved Equivalent",{"$nulls":9},0]
["F79E17C0608BBA0C24D680E08895A281",557,"","Snack Foods: Crackers","Cracker Goldfish Cheddar Wg 1Brd 100 Cal","300 / 0.75 Ounces","33 Cases","Pepperidge Farm, Inc. (Campbell Soup Company) - 18105","Approved Equivalent",{"$nulls":9},0]
["689AB98367FC3D1ED29DE40A512E27B9",558,"","Snack Foods: Crackers","Cracker Goldfish Colors Wg =1Ge","300 / 0.75 Ounces","120 Cases","Pepperidge Farm, Inc. (Campbell Soup Company) - 4788","Approved Equivalent",{"$nulls":9},0]
["85AC715CC5E4EE0935E5F0F1566A23C3",559,"","Snack Foods: Crackers","Cracker Saltine Iw Premium","500 / 2.0 Count","24 Cases","Zesta (Kellogg Company) - 3010001008","Approved Equivalent",{"$nulls":9},0]
["377114CEBBE8AF1E369C2F0044353D32",560,"","Snack Foods: Crackers","Graham Bug Bites Cinn Iw Wg","210 / 1.1 Ounces","240 Cases","Kellogg Company - 3010055644","Approved Equivalent",{"$nulls":9},0]
["91CC2067AEA902AA25B8A846996E62C6",561,"","Snack Foods: Crackers","Snack Fun&Nutrition Educatnl Es1001","120 / 1.0 Ounces","60 Cases","Dick & Jane Baking Company - 660904","Approved Equivalent",{"$nulls":9},0]
["1F38067BC15D191E7E19C03D94FAC113",562,"","Snack Foods: Marshmallow Cereal Treats","Square Marshmallow Crispy Treat Wg=1Gr","50 / 1.6 Ounces","17 Cases","Super Bakery, Inc. - 9432","Approved Equivalent",{"$nulls":9},0]
["85E41AD84C8C170C2639F9F3670B7DFE",563,"","Snack Foods: Marshmallow Cereal Treats","Treat Rice Krispie Mini Squ Wg","600 / 0.42 Ounces","41 Cases","Kellogg Company - 3800014540","Approved Equivalent",{"$nulls":9},0]
["C62D1F9460B468521409224C7A608091",564,"","Snack Foods: Popcorn","Popcorn  White Cheddar Rf","72 / 0.5 Ounces","240 Cases","Smartfood (PepsiCo) - 30900","Approved Equivalent",{"$nulls":9},{"$f":"P323 * R323","v":0}]
["0F549EAB1BBD9265C502B55EF6817167",565,"","Snack Foods: Pretzels","Pretzel Classic Tiny Twist Rold Gold","88 / 1.0 Ounces","240 Cases","Rold Gold (PepsiCo) - 32430","Approved Equivalent",{"$nulls":9},0]
["32C02363E07659DE5DCC2D7B9AE9C1FF",566,"","Snack Foods: Snack Bars","Bar Cereal Cinnamon Toast Crunch Wg=1Ge","96 / 1.42 Ounces","290 Cases","General Mills, Inc. - 45576","Approved Equivalent",{"$nulls":9},0]
["61B36D6F5DCD43B3256E2B2C04FC8368",567,"","Snack Foods: Snack Bars","Bar Cereal Cocoa Puffs Wg =1Ge","96 / 1.42 Ounces","365 Cases","General Mills, Inc. - 45577","Approved Equivalent",{"$nulls":9},0]
["00B9A3C6430B97B13D9C7DB9E027FED6",568,"","Snack Foods: Snack Bars","Bar Cereal Trix Wg =1Ge","96 / 1.42 Ounces","225 Cases","General Mills, Inc. - 31915","Approved Equivalent",{"$nulls":9},0]
["36BA74DFEB3F60245E21D8F9431C373A",569,"","Snack Foods: Snack Bars","Bar Soft Fill Cinn Toast Crunch","72 / 2.36 Ounces","430 Cases","General Mills, Inc. - 110978","Approved Equivalent",{"$nulls":9},0]
["280E31E0E908CCE6A520DA57D49CBFC8",570,"","Snack Foods: Snack Bars","Bar Soft Fill Cocoa Puffs","72 / 2.36 Ounces","340 Cases","General Mills, Inc. - 111032","Approved Equivalent",{"$nulls":9},0]
["7F72C47FD48F3FB05871EBC0F0742462",571,"","Soup, Broth, Bases","Base Chic Lo Sodium No Msg Mt 1St Paste","6 / 1.0 Pounds","185 Cases","Major Products Inc. - 93396","Approved Equivalent",{"$nulls":9},0]
["73F0565874F56F44B59A79353884D184",572,"","Soup, Broth, Bases","Soup Cream Of Chicken","12 / 50.0 Ounces","70 Cases","Campbell Soup Company - 1036","Approved Equivalent",{"$nulls":9},0]
["A50BCFF83573374481F03BF3DDD1CEAD",573,"","Spices, Seasonings and Colorings","Cinnamon Maple Sprinkle Powder","1 / 30.0 Ounces","60 Cases","Durkee (B & G Foods, Inc.) - 2004197","Approved Equivalent",{"$nulls":9},0]
["C1DC118E154B85625CC95140A960B413",574,"","Spices, Seasonings and Colorings","Cumin Ground Usa","1 / 16.0 Ounces","50 Cases","Restaurant Pride (F.A.B.) - 1106","Approved Equivalent",{"$nulls":9},0]
["BC23CA84AD7630EE02D7550605818F2E",575,"","Spices, Seasonings and Colorings","Seasoning Garlic & Herb Salt Free","1 / 20.0 Ounces","20 Cases","Lawry's (McCormick & Company) - 900498766","Approved Equivalent",{"$nulls":9},0]
["9E8374CBEEE07D188EBD01EFA033F79A",576,"","Spices, Seasonings and Colorings","Seasoning Lemon Pepper Salt Free","1 / 19.0 Ounces","20 Cases","Lawry's (McCormick & Company) - 900513940","Approved Equivalent",{"$nulls":9},0]
["916DDE987A4E060F090A7DC31CD296CF",577,"","Spices, Seasonings and Colorings: Cooking Wine & Vinegar","Vinegar White 4% Acidity Distilled","4 / 1.0 Gallons","55 Cases","Restaurant Pride (F.A.B.) - Wdv120","Approved Equivalent",{"$nulls":9},0]
["758D072C0885A6451CA4104DC915A946",578,"","Spices, Seasonings and Colorings: Seasonings & Salts","Salt Packet #10024","6 / 1000.0 Count","1 Cases","Restaurant Pride (F.A.B.) - 29316","Approved Equivalent",{"$nulls":9},0]
["889883806C286D9D50C72AF5FCD2409B",579,"","Spices, Seasonings and Colorings: Seasonings & Salts","Seasoning Salt Free 17","1 / 20.0 Ounces","20 Cases","Lawry's (McCormick & Company) - 2150080606","Approved Equivalent",{"$nulls":9},0]
["27654569E4C3A4DF6F1333E67DE114C5",580,"","Spices, Seasonings and Colorings: Spices","Garlic Granulated   China","1 / 25.0 Ounces","42 Cases","Restaurant Pride (F.A.B.) - 1809","Approved Equivalent",{"$nulls":9},0]
["E6765D69D4E43200F45BCEA61FC47446",581,"","Spices, Seasonings and Colorings: Spices","Mix Fajitas Seasoning  Tff","6 / 8.9 Ounces","24 Cases","Lawry's (McCormick & Company) - 2150080091","Approved Equivalent",{"$nulls":9},0]
["5AA86A427E9B837F7B89738E40FEF764",582,"","Spices, Seasonings and Colorings: Spices","Mix Taco Seasoning Red Sodium","6 / 14.0 Ounces","235 Cases","C.F. Sauer Company - 9273","Approved Equivalent",{"$nulls":9},0]
["70EEFDF16A36F3A21A422F010C6D1200",583,"","Spices, Seasonings and Colorings: Spices","Mustard Ground Usa/Canada","1 / 16.0 Ounces","20 Cases","Restaurant Pride (F.A.B.) - 1166","Approved Equivalent",{"$nulls":9},0]
["1741019CFC8D5FD708D1F0DBBB9AA766",584,"","Spices, Seasonings and Colorings: Spices","Paprika","1 / 16.0 Ounces","71 Cases","Restaurant Pride (F.A.B.) - 1191","Approved Equivalent",{"$nulls":9},0]
["236D548F82B71FDCE8746C8D97664207",585,"","Spices, Seasonings and Colorings: Spices","Pepper Black Ground Fine","1 / 16.0 Ounces","55 Cases","Restaurant Pride (F.A.B.) - 936","Approved Equivalent",{"$nulls":9},0]
["E234AB027CD5A80A7A1B8228C98CB6AA",586,"","Spices, Seasonings and Colorings: Spices","Pepper Packets","6 / 1000.0 Count","1 Cases","Restaurant Pride (F.A.B.) - 29616","Approved Equivalent",{"$nulls":9},0]
["080320D38EDBC60DE892E328434CD234",587,"","Spices, Seasonings and Colorings: Spices","Powder Chili Lt  Usa","1 / 16.0 Ounces","30 Cases","Restaurant Pride (F.A.B.) - 1066","Approved Equivalent",{"$nulls":9},0]
["96C51886EFC16F76C325763A2A4E3306",588,"","Spices, Seasonings and Colorings: Spices","Powder Onion Usa","1 / 20.0 Ounces","100 Cases","Restaurant Pride (F.A.B.) - 1820","Approved Equivalent",{"$nulls":9},0]
["07E8B39C41DBD69D99994030646D99F7",589,"","Spices, Seasonings and Colorings: Spices","Seasoning  14 Spice Signature Blend","1 / 21.0 Ounces","20 Cases","McCormick & Company - 901210141","Approved Equivalent",{"$nulls":9},0]
["4FB143E950E1A7A654EEAF9A1837832A",590,"","Spices, Seasonings and Colorings: Spices","Seasoning Chef Shake Salt Free      Usa","1 / 18.0 Ounces","80 Cases","Restaurant Pride (F.A.B.) - 1003","Approved Equivalent",{"$nulls":9},0]
["FEEB1D14F069E318F1B443FEEF87C337",591,"","Spices, Seasonings and Colorings: Spices","Seasoning Garlic Herb Perfect Pinch","6 / 20.0 Ounces","20 Cases","McCormick & Company - 901210142","Approved Equivalent",{"$nulls":9},0]
["E37106D5CCCCF50C086CF833AF7DC1CA",592,"","Spices, Seasonings and Colorings: Spices","Seasoning Garlic Herb Salt Free","1 / 21.0 Ounces","215 Cases","Mrs. Dash (Kent Precision Foods Group Inc. (Precision Foods)) - 8026032500","Approved Equivalent",{"$nulls":9},0]
["A0A899A965625A823B7BC1AFCEDEF12A",593,"","Spices, Seasonings and Colorings: Spices","Seasoning Italian Usa","1 / 6.5 Ounces","180 Cases","Restaurant Pride (F.A.B.) - 1381","Approved Equivalent",{"$nulls":9},0]
["FF82FB02320A07314F87F1DC224A3978",594,"","Spices, Seasonings and Colorings: Spices","Seed Celery India","1 / 16.0 Ounces","20 Cases","Restaurant Pride (F.A.B.) - 1341","Approved Equivalent",{"$nulls":9},0]
["0054E4B94792E9B7C9E5C57D77ED2287",595,"","Sugars & Sweeteners","Sugar Packet","1 / 2000.0 Count","2 Cases","Restaurant Pride (F.A.B.) - 165473","Approved Equivalent",{"$nulls":9},0]
["3CE29316D1916506D7673857D5F487B8",596,"","Sugars & Sweeteners: Artificial Sweetener","Sugar Substitute Splenda Packets","2000 / 1.0 Grams","1 Cases","Splenda - 20004","Approved Equivalent",{"$nulls":9},0]
["0D4B8956104782F0541CD8661D093115",597,"","Sugars & Sweeteners: Artificial Sweetener","Sugar Substitute Yellow Pkt","1 / 2000.0 Count","1 Cases","Restaurant Pride (F.A.B.) - 83568","Approved Equivalent",{"$nulls":9},0]
["F72FE886C3EB154D6E0624DB28DCE49C",598,"","Sugars & Sweeteners: Brown Sugar","Sugar Light Brown Poly","12 / 2.0 Pounds","40 Cases","Domino Foods, Inc. - 400592","Approved Equivalent",{"$nulls":9},0]
["46FD908DEBFC0A78A91C0682252E26C1",599,"","Vegetables","Vegetable Mix Dutch Calif Blnd 50187","1 / 20.0 Pounds","350 Cases","Restaurant Pride (F.A.B.) - 4820027374","Approved Equivalent",{"$nulls":9},0]
["22760F1CBF09097AAA195DC957F986AD",600,"","Vegetables: Beans","Bean Chili Fncy","6 / 10.0 Cans","95 Cases","Restaurant Pride (F.A.B.) - 4820068534","Approved Equivalent",{"$nulls":9},0]
["50E125C5CB23620C690F380128302B67",601,"","Vegetables: Beans","Bean Pinto L/S","6 / 10.0 Cans","230 Cases","Restaurant Pride (F.A.B.) - 4820097438","Approved Equivalent",{"$nulls":9},0]
["FAA554F6003C323EA23E95FE9DADEF3E",602,"","Vegetables: Beans","BUSH BEAN OVEN BAKED FNCY BEAN POT ORIGINAL #1619","6 / 117.0 Ounces","250 Cases",null,"Approved Equivalent",{"$nulls":9},0]
["053E8122981BE435589CD4BF55C5CBE6",603,"","Vegetables: Beans","BUSH BEST VEGETARIAN BAKED BEANS #1637","6 / 117.0 Ounces","250 Cases",null,"Approved Equivalent",{"$nulls":9},0]
["50B89EC22CBCF1EE43497C39B25B70AB",604,"","Vegetables: Broccoli","Broccoli Floret Fcy Iqf","12 / 2.0 Pounds","1,095 Cases","IWC Food Service - 400598","Approved Equivalent",{"$nulls":9},0]
["1E5441B626B971729A21F11B9EE07C4A",605,"","Vegetables: Corn","Corn Whole Kernel Fcy Grade A","1 / 20.0 Pounds","1,101 Cases","Restaurant Pride (F.A.B.) - 4820027285","Approved Equivalent",{"$nulls":9},0]
["3AD043575A860127EB0F2498E4C09FAF",606,"","Vegetables: Green Beans","Bean Green Cut Blue Lake L/S","6 / 10.0 Cans","400 Cases","Restaurant Pride (F.A.B.) - 3382822066","Approved Equivalent",{"$nulls":9},0]
["1AA352EABBB32C1DD4B09A4A8AF9A414",607,"","Vegetables: Peas","Pea Green Grade A Frz","1 / 20.0 Pounds","241 Cases","Restaurant Pride (F.A.B.) - 4820027440","Approved Equivalent",{"$nulls":9},0]
["Section B"]
["251B45C4757A15A1895F4A791824A806",365,"","Fruits: Apples","Apple Granny Smith 113/125 Fresh","1 / 113.0 - 125.0 Count","138 Cases",{"$nulls":11},{"$f":"P368 * R368","v":0}]
["D8BF6DE7556F7E885AD52F26A9E51B0E",366,"","Fruits: Apples","Apple Grins Slices Snack Pack Fresh","100 / 4.0 Ounces","430 Cases","Taylor Farms (Taylor Fresh Foods, Inc.) - 60392","Approved Equivalent",{"$nulls":9},0]
["93C6B5304256269AF99B88C91F0BEAD8",367,"","Fruits: Apples","Apple Red Del/113/125 Fresh","1 / 113.0 - 125.0 Count","1,100 Cases",{"$nulls":11},0]
["2EB707C1A50A83993F022A45FAD6A03C",368,"","Fruits: Apples","Apple/Gala 113/125 Fresh","1 / 125.0 Count","56 Cases",{"$nulls":11},0]
["39A99142630F3386BB9221BC1C3DBBDC",369,"","Fruits: Bananas","Bananas  Fresh","1 / 10.0 Pounds","25 Cases",{"$nulls":11},0]
["4B8889843999CE869D2556F24F8A1E45",370,"","Fruits: Bananas","Bananas Generic  Fresh","1 / 40.0 Pounds","40 Cases",{"$nulls":11},0]
["242341FB067701691A2F766B7BD6DBF2",371,"","Fruits: Cantaloupes","Cantaloupe Fresh 1/2 Cup Snack Pack","50 / 4.0 Ounces","430 Cases",{"$nulls":11},0]
["6923D0D9D7012C9CF45B5F3D5E44C9E7",372,"","Fruits: Cantaloupes","Cantaloupe Usa 12Ct Fresh","12 / 1.0 Count","2 Cases",{"$nulls":11},0]
["E2EE1D83499FCABAA6F16A496A7F38E0",373,"","Fruits: Grapes","Grape Giggles Snack Pack Fresh","50 / 4.0","300 Cases","Taylor Farms (Taylor Fresh Foods, Inc.) - 60393","Approved Equivalent",{"$nulls":9},0]
["2F3FBC659AAE88494141E692C05F20FF",374,"","Fruits: Grapes","Grape Red Seedless 18Lb Fresh","1 / 18.0 Pounds","10 Cases",{"$nulls":11},0]
["56F45F677659C1A113B9D49B0F62467C",375,"","Fruits: Grapes","Grape White Seedless 18#  Fresh","1 / 18.0 Pounds","10 Cases",{"$nulls":11},0]
["53AB5D65B8D06408C0095AEC3A823BAD",376,"","Fruits: Honeydew","Honeydew Chunk Snack Pack","50 / 4.0 Ounces","430 Cases","Taylor Farms (Taylor Fresh Foods, Inc.) - 59763","Approved Equivalent",{"$nulls":9},0]
["7D5F3D62008586325704563C6725CE74",377,"","Fruits: Mangoes","Mango Snack Pack  Usa Fresh","50 / 4.0 Ounces","430 Cases","Taylor Farms (Taylor Fresh Foods, Inc.) - 59761","Approved Equivalent",{"$nulls":9},0]
["31FD20FEF488B8846CE514F5EE2DD3B5",378,"","Fruits: Oranges","Orange 40 Lb 113/125/138 Fresh","1 / 125.0 Count","1,600 Cases",{"$nulls":11},0]
["A6B6C2C82815F2BAC07E6649F7D16069",379,"","Fruits: Oranges","Orange Mandarin Whole Seg L/S","6 / 10.0 Cans","1,131 Cases","Restaurant Pride (F.A.B.) - 4820047504","Approved Equivalent",{"$nulls":9},0]
["551F5C150ACD48BE530E5B0B0CC90598",380,"","Fruits: Oranges","Orange Smiles 3 Oz Snack Pack Fresh","50 / 3.0 Ounces","430 Cases","Taylor Farms (Taylor Fresh Foods, Inc.) - 60394","Approved Equivalent",{"$nulls":9},0]
["7B0A351502DAEC3934D0C201BF9A2C9A",381,"","Fruits: Pears","Pear 40# 110 Pear Usa","1 / 110.0 - 120.0 Pounds","13 Cases",{"$nulls":11},0]
["884A1C715FEA271A022FF85FA7367853",382,"","Fruits: Pineapple","Pineapple Snack Pack Usa Fresh","50 / 4.0 Ounces","430 Cases",{"$nulls":11},0]
["CAE7B1BAAD66D0F93B93047F61AA35E3",383,"","Fruits: Strawberries","Strawberry 8/1 Fresh","8 / 1.0 Pounds","7 Cases",{"$nulls":11},0]
["799A8AF0CFA57A765859E99337247333",384,"","Potatoes","Potato 100Ct Baking Fresh","1 / 50.0 Pounds","7 Cases",{"$nulls":11},0]
["06D5A994EAD1E3D0F53E953DD76F0541",385,"","Potatoes","Potato Red B (Baby Size) Usa Fresh","1 / 50.0 Pounds","203 Cases",{"$nulls":11},0]
["9059DC8C12C4530491CDCBCDFD34B205",386,"","Prepared Foods: Salads","Coleslaw Mix Shrd Rd Cab&Car.Sep Fresh","4 / 5.0 Pounds","3 Cases","Taylor Farms (Taylor Fresh Foods, Inc.) - 50331","Approved Equivalent",{"$nulls":9},0]
["1463710D01172942417CC6FB266D9072",387,"","Prepared Foods: Salads","Iceberg Salad W/Rc&Car Fresh","4 / 5.0 Pounds","33 Cases","Taylor Farms (Taylor Fresh Foods, Inc.) - 51930","Approved Equivalent",{"$nulls":9},0]
["55ACEC8010D37D945392176A1D58565B",388,"","Vegetables","Zucchini Coins Snack Pack Usa","50 / 4.0 Ounces","430 Cases","Taylor Farms (Taylor Fresh Foods, Inc.) - 59844","Approved Equivalent",{"$nulls":9},0]
["94B47B5F252CDF246B205CC146DD1B09",389,"","Vegetables: Broccoli","Broccoli Floret Usa Fresh","4 / 3.0 Pounds","6 Cases",{"$nulls":11},0]
["EBED5E1172AC19B5B0E3A7F1A5FD3DC0",390,"","Vegetables: Broccoli","Broccoli Snack Pack Fresh","50 / 4.0 Ounces","430 Cases","Taylor Farms (Taylor Fresh Foods, Inc.) - 59771","Approved Equivalent",{"$nulls":9},0]
["B055C141AB8E143AE0B88BCF0AFEF7F5",391,"","Vegetables: Carrots","Carrot Baby Peeled Usa Fresh","6 / 5.0 Pounds","154 Cases",{"$nulls":11},0]
["D8DE44825A91BE298FC0CCA890F3E68D",392,"","Vegetables: Carrots","Carrot Baby Usa Snack Pack Fresh","100 / 2.0 Ounces","430 Cases",{"$nulls":11},0]
["3BDDFFBBAB3585B507E22B6C4433C0E2",393,"","Vegetables: Carrots","Carrot Shredded Usa Fresh","4 / 5.0 Pounds","18 Cases","Taylor Farms (Taylor Fresh Foods, Inc.) - 50344","Approved Equivalent",{"$nulls":9},0]
["F78D9B6107228A61F240F5CB90E73D00",394,"","Vegetables: Carrots","Carrot Sliced Kk","1 / 20.0 Pounds","301 Cases","Restaurant Pride (F.A.B.) - 4820027227","Approved Equivalent",{"$nulls":9},0]
["E05C446B275EDB7412B331ECE4AAE427",395,"","Vegetables: Cauliflower","Cauliflower Snack Pack Fresh","50 / 4.0 Ounces","430 Cases","Taylor Farms (Taylor Fresh Foods, Inc.) - 59769","Approved Equivalent",{"$nulls":9},0]
["901649B4A912DB5125E179A8DE0825FB",396,"","Vegetables: Celery","Celery Sticks Snack Pack Fresh","50 / 4.0 Ounces","430 Cases",{"$nulls":11},0]
["5F39792F8B98A70BC0422D1DFCFA1891",397,"","Vegetables: Cucumber","Cucumber Select Usa Fresh","1 / 5.0 Pounds","81 Cases",{"$nulls":11},0]
["131809E8236361E92CC1BBA58C02EDFA",398,"","Vegetables: Cucumber","English Cucumber Coin Snack Pkfresh","50 / 4.0 Ounces","430 Cases","Taylor Farms (Taylor Fresh Foods, Inc.) - 60445","Approved Equivalent",{"$nulls":9},0]
["3AEF8DDA922657A718C7E5CB6DB23EAD",399,"","Vegetables: Lettuce","Iceberg/Romaine 50/50 Color Sep Fresh","4 / 5.0 Pounds","28 Cases","Taylor Farms (Taylor Fresh Foods, Inc.) - 51197","Approved Equivalent",{"$nulls":9},0]
["C48BBEFD3C0B7B3426F7C7AC1E53473F",400,"","Vegetables: Lettuce","Lettuce 1/8\" Shredded Usa Fresh","4 / 5.0 Pounds","36 Cases","Taylor Farms (Taylor Fresh Foods, Inc.) - 51233","Approved Equivalent",{"$nulls":9},0]
["DBEEFBE0E2B3F60D5084838914C668B8",401,"","Vegetables: Lettuce","Lettuce Green Leaf 3 Ct Fresh","1 / 3.0 Count","60 Cases",{"$nulls":11},0]
["21A32DF6BF9A58995B9A88333A664D5B",402,"","Vegetables: Lettuce","Lettuce, Iceberg Cello Fresh 3ct","3 Each","30 Cases",{"$nulls":11},0]
["A356898257B319BD4E426D2A3E87A47B",403,"","Vegetables: Onions","Onion Yellow Large 10# Mesh","1 / 10.0 Pounds","15 Cases",{"$nulls":11},0]
["771F5C12A2A224BC2B83B59AA7F2B4F7",404,"","Vegetables: Peas","Sugar Snap Peas Snack Pack Fresh","50 / 4.0 Ounces","430 Cases",{"$nulls":11},0]
["19596D2A11D32187BF342A121230452A",405,"","Vegetables: Peppers","Pepper Green Fresh Usa","1 / 5.0 Pounds","8 Cases",{"$nulls":11},0]
["9B66CEFF460C623ECBEE87E74CA5D4C9",406,"","Vegetables: Peppers","Pepper Green Strip Snack Pack","50 / 4.0 Ounces","430 Cases",{"$nulls":11},0]
["6A7382A549D07E50DD00A1B1F9389535",407,"","Vegetables: Peppers","Red Pepper Fresh","1 / 5.0 Pounds","5 Cases",{"$nulls":11},0]
["844BD1B8BF5D2117FD2494F59F257B6E",408,"","Vegetables: Tomatoes","Tomato Med 5 X 6 10# Fresh","1 / 10.0 Pounds","46 Cases",{"$nulls":11},0]